Cogmind - Beta 16 @@@ ROGUE MODE // 2025.12.23 @ 19:10:18 Player: C0-2MO Result: Destroyed by Combat Programmer with EMDS Performance ------------- Evolutions (8) 4000 Regions Visited (42) 8400 Robots Destroyed (234) 1170 Value Destroyed (8462) 8462 Prototype IDs (234) 4680 Alien Tech Used (6) 1200 Bonus (26774) 26774 TOTAL SCORE: 54686 Bonus ------- High Alert Combat Kills 713 Follower Combat Kills 4101 Destroyed Unchained 1000 Entered Garrisons 1400 Used RIF Installer 4000 Network Hubs Disabled 800 Met Data Miner 300 Used Data Conduit 3000 Built Enhanced Grunts 300 A7 Reached Mainframe 300 Met R17 at Cetus 500 Found Hidden Lab 3000 Decrypted A0 Command 3000 Scanned by Researcher 500 Pursued by Intercept 2000 Met Sigix 2000 Friendly Fire -140 Cogmind --------- Core Integrity 0/1450 Matter 300/300 Energy 100/100 System Corruption 15% Temperature Cool (0) Movement Core (50) Location -2/Section 7 Parts ------- > --- POWER (2) -------- (None) > --- PROPULSION (10) -- (None) > --- UTILITY (9) ------ Spectral Analyzer > --- WEAPON (2) ------- (None) > --- INVENTORY (5) ---- Quantum Reactor Subatomic Replicator Peak State ------------ > --- POWER ------------ Light Particle Reactor Micro Antimatter Reactor > --- PROPULSION ------- Advanced Surge Thruster Advanced Surge Thruster Field Propulsion Array Field Propulsion Array Q-thruster Q-thruster Cooled Impulse Thruster Improved Q-thruster > --- UTILITY ---------- Large Storage Unit Enhanced Optical Array Experimental Sensor Array Improved Cloaking Device Deep Network Scanner Relay Coupler [Proto] LC Capacitor > --- WEAPON ----------- Guided Remote Datajack Nanosword > --- INVENTORY -------- Graviton Reactor Impulse Thruster Impulse Thruster Array Experimental Coolant Injector Stasis Canceller Experimental Phase Shifter Graphene Brace Relay Coupler [Proto] Transdimensional Reconstructor Core Regenerator Precision Grenade Launcher Plasma Cutter Sigix Containment Pod [Rating: 208] Favorites ----------- Power Micro Nuclear Core Engine Ion Engine Power Core Micro Nuclear Core Reactor Micro Antimatter Reactor Propulsion Xenon Bombardment Thruster Treads Light Treads Wheel Compact Wheel Hover Unit Improved Airjet Flight Unit Xenon Bombardment Thruster Utility Medium Storage Unit Device Experimental Heat Sink Storage Medium Storage Unit Processor Improved Signal Interpreter Hackware Hacking Suite Protection Powered Armor Artifact LC Capacitor Weapon Chainsword Energy Gun Improved EM Shotgun Ballistic Gun Assault Rifle Ballistic Cannon Hypervelocity Gauss Cannon Launcher Precision Grenade Launcher Special Weapon Plasma Cutter Slashing Weapon Chainsword Special Melee Weapon Improved Datajack Build | -11 -10 -10 -9 -9 -9 -8 -8 -8 -7 -7 -7 -7 -7 -7 -6 -6 -6 -6 -6 -6 -6 -6 -6 -5 -5 -5 -5 -5 -5 -4 -4 -4 -4 -4 -3 -3 -3 -3 -3 -2 -2 -2 ------- Run | Yrd Mat Min Mat Min Exi Min Mat Gar Fac Was Fac Low Low Dat Pro Fac Gar Fac Ext Cet Arc Hub Gar Fac Was Fac Gar Fac Gar Fac Was Fac Arm Lab Res Gar Res Tes Gar Res Qua Sec Slots Evolved 16 | . . . 2 . . . 2 . 2 . . . . . . 2 . . . . . . . 2 . . . . . 2 . . . . 2 . . . . 2 . . Power 1 | . . . . . . . . . . . . . . . . 1 . . . . . . . . . . . . . . . . . . . . . . . . . . Propulsion 8 | . . . 2 . . . . . 1 . . . . . . 1 . . . . . . . 1 . . . . . 1 . . . . 2 . . . . . . . Utility 7 | . . . . . . . 2 . 1 . . . . . . . . . . . . . . 1 . . . . . 1 . . . . . . . . . 2 . . Weapon . | . . . . . . . . . . . . . . . . . . . . . . . . . . . . . . . . . . . . . . . . . . . Parts Attached 224 | 7 8 3 11 4 . 6 12 9 29 . 19 . . 2 1 4 4 4 7 . 6 1 3 7 . 2 1 7 . 14 1 9 16 9 3 . . 4 . 3 1 7 Power 24 | 1 . 1 1 . . 2 1 1 3 . . . . . . 1 . 1 2 . 1 . . 1 . . . 2 . 2 1 1 . 1 . . . . . . . 1 Engine 8 | 1 . . 1 . . 2 . . 1 . . . . . . . . 1 . . 1 . . 1 . . . . . . . . . . . . . . . . . . Core 12 | . . 1 . . . . 1 1 2 . . . . . . 1 . . 2 . . . . . . . . 2 . 2 . . . . . . . . . . . . Reactor 4 | . . . . . . . . . . . . . . . . . . . . . . . . . . . . . . . 1 1 . 1 . . . . . . . 1 Propulsion 77 | 2 1 2 4 . . 4 2 5 12 . 4 . . . 1 1 . 1 . . 2 1 . 3 . 1 1 4 . 5 . 3 12 . 1 . . 2 . . . 3 Treads 7 | 1 . 2 4 . . . . . . . . . . . . . . . . . . . . . . . . . . . . . . . . . . . . . . . Leg . | . . . . . . . . . . . . . . . . . . . . . . . . . . . . . . . . . . . . . . . . . . . Wheel 2 | 1 1 . . . . . . . . . . . . . . . . . . . . . . . . . . . . . . . . . . . . . . . . . Hover 1 | . . . . . . . . . . . 1 . . . . . . . . . . . . . . . . . . . . . . . . . . . . . . . Flight 67 | . . . . . . 4 2 5 12 . 3 . . . 1 1 . 1 . . 2 1 . 3 . 1 1 4 . 5 . 3 12 . 1 . . 2 . . . 3 Utility 83 | 2 3 . . 2 . . 4 1 10 . 13 . . 2 . 1 4 2 4 . 2 . 3 3 . 1 . 1 . 4 . 4 3 5 1 . . 1 . 3 1 3 Device 30 | 1 2 . . . . . 1 . 5 . 7 . . . . 1 . . 2 . . . 1 . . . . 1 . 1 . 2 . 1 . . . . . 3 1 1 Storage 6 | 1 1 . . . . . . . . . 2 . . . . . . . . . . . . 1 . . . . . . . . 1 . . . . . . . . . Processor 8 | . . . . . . . 2 . 3 . . . . . . . . . . . . . . . . . . . . 1 . . . . 1 . . . . . . 1 Hackware 30 | . . . . . . . 1 . 2 . 4 . . . . . 4 1 2 . 2 . 2 2 . 1 . . . 2 . 2 2 2 . . . 1 . . . . Protection 7 | . . . . 2 . . . 1 . . . . . 2 . . . 1 . . . . . . . . . . . . . . . 1 . . . . . . . . Artifact 2 | . . . . . . . . . . . . . . . . . . . . . . . . . . . . . . . . . . 1 . . . . . . . 1 Weapon 40 | 2 4 . 6 2 . . 5 2 4 . 2 . . . . 1 . . 1 . 1 . . . . . . . . 3 . 1 1 3 1 . . 1 . . . . Energy Gun 10 | . 3 . 5 . . . . . . . . . . . . . . . . . . . . . . . . . . . . . . 2 . . . . . . . . Energy Cannon . | . . . . . . . . . . . . . . . . . . . . . . . . . . . . . . . . . . . . . . . . . . . Ballistic Gun 7 | 2 . . . . . . . 2 . . . . . . . . . . 1 . . . . . . . . . . 2 . . . . . . . . . . . . Ballistic Cannon 1 | . . . . . . . . . . . . . . . . . . . . . . . . . . . . . . . . 1 . . . . . . . . . . Launcher 4 | . . . 1 . . . 2 . 1 . . . . . . . . . . . . . . . . . . . . . . . . . . . . . . . . . Special Weapon 3 | . 1 . . . . . . . 1 . . . . . . . . . . . . . . . . . . . . . . . . 1 . . . . . . . . Impact Weapon . | . . . . . . . . . . . . . . . . . . . . . . . . . . . . . . . . . . . . . . . . . . . Slashing Weapon 6 | . . . . 1 . . 2 . 1 . . . . . . . . . . . . . . . . . . . . . . . . . 1 . . 1 . . . . Piercing Weapon . | . . . . . . . . . . . . . . . . . . . . . . . . . . . . . . . . . . . . . . . . . . . Special Melee Weapon 9 | . . . . 1 . . 1 . 1 . 2 . . . . 1 . . . . 1 . . . . . . . . 1 . . 1 . . . . . . . . . Unidentified Prototypes 16 | . . . 2 . . . 2 . 1 . 1 . . . . . . . 2 . . . . . . . . . . . . . . 6 . . . . . . . 2 Parts Lost 69 | . 1 2 1 2 1 . . 8 7 . 1 . . . . . 1 1 2 2 . . 2 . . 1 2 5 . 5 . . 1 . . . . . . . . 24 Power 10 | . . . . 1 . . . 1 . . . . . . . . . . . 1 . . 1 . . . . 2 . 1 . . . . . . . . . . . 3 Propulsion 36 | . 1 1 . 1 1 . . 4 6 . . . . . . . . . . . . . 1 . . . 2 3 . 4 . . 1 . . . . . . . . 11 Utility 15 | . . . . . . . . 2 1 . 1 . . . . . . 1 2 1 . . . . . 1 . . . . . . . . . . . . . . . 6 Weapon 8 | . . 1 1 . . . . 1 . . . . . . . . 1 . . . . . . . . . . . . . . . . . . . . . . . . 4 Highest Loss Streak 14 | . 1 1 1 2 1 . . 4 3 . 1 . . . . . 1 1 2 1 . . 2 . . 1 2 4 . 4 . . 1 . . . . . . . . 14 To Critical Strikes 2 | . . . . 2 . . . . . . . . . . . . . . . . . . . . . . . . . . . . . . . . . . . . . . Average Backups 9 | 3 8 13 14 15 15 4 4 4 4 5 9 10 10 9 9 8 8 9 9 10 9 10 9 9 10 10 9 9 10 9 10 9 10 13 13 14 14 13 14 12 12 7 Power . | . 1 1 1 1 1 . 1 . . . . 1 1 1 1 . . . . . . 1 1 . . . . . 1 . . . . . 1 1 1 1 1 1 1 . Propulsion 2 | 1 1 5 5 4 4 . . 1 . 2 3 3 3 3 3 2 2 2 2 2 . . . . . . . . . . . . 1 3 2 3 3 2 2 2 2 . Utility 3 | . 1 2 2 3 3 1 . . 1 2 3 4 4 3 3 3 3 5 4 5 5 5 5 6 7 6 6 6 6 7 8 6 6 5 5 6 6 6 7 5 4 2 Weapon 1 | . 3 3 4 4 6 1 1 1 1 1 1 1 1 1 1 1 1 1 1 1 1 1 1 1 1 1 1 . 1 1 1 1 1 1 1 1 1 1 1 1 1 . Tool/Special . | . . . . . . . . . . . . . . . . . . . . . . . . . . . . . . . . . . . . . . . . . . . Unused Backups 24 | . 3 . 4 . . 2 . . 2 . 1 . . . . . . . 2 . 1 1 1 . . . . 1 . 1 . . 1 . 1 . . 1 . . . 2 Power 2 | . . . . . . . . . . . . . . . . . . . . . . . . . . . . . . 1 . . . . . . . . . . . 1 Propulsion 2 | . 1 . . . . . . . . . . . . . . . . . . . . . . . . . . . . . . . 1 . . . . . . . . . Utility 11 | . 1 . 2 . . . . . 2 . 1 . . . . . . . 1 . . 1 1 . . . . 1 . . . . . . . . . 1 . . . . Weapon 5 | . 1 . 2 . . 2 . . . . . . . . . . . . . . . . . . . . . . . . . . . . . . . . . . . . Tool/Special 4 | . . . . . . . . . . . . . . . . . . . 1 . 1 . . . . . . . . . . . . . 1 . . . . . . 1 Average Slot Usage (%) 94 | . 99 99 98 98 77 96 97 96 92 100 99 100 100 100 100 99 93 90 99 91 98 100 96 90 100 96 94 93 100 89 94 94 97 86 79 80 80 80 80 81 81 54 Engine 3 | . 14 9 10 10 . 10 . . . . . . . . . . . 3 . . 5 6 6 9 11 11 11 7 . . . . . . . . . . . . . . Core 4 | . . 4 . . . . 8 8 7 7 7 7 7 7 7 13 6 6 11 11 6 6 3 . . . . 1 11 8 6 2 . . . . . . . . . . Reactor 1 | . . . . . . . . . . . . . . . . . . . . . . . . . . . . . . . 3 7 10 10 9 9 9 9 9 8 7 4 Treads 6 | . 14 16 43 43 33 . . . . . . . . . . . . . . . . . . . . . . . . . . . . . . . . . . . . . Wheel 1 | . 13 11 . . . . . . . . . . . . . . . . . . . . . . . . . . . . . . . . . . . . . . . . Flight 29 | . . . . . . 40 36 35 34 38 37 38 38 38 38 39 40 40 40 40 40 40 39 38 41 41 41 40 41 34 36 37 39 32 37 38 38 38 38 34 34 20 Device 9 | . 14 14 11 9 . 9 13 8 12 15 10 7 7 3 5 6 . 5 8 6 6 6 7 11 11 8 11 12 17 12 10 12 12 4 . . . . . 7 8 8 Storage 5 | . 14 14 11 11 11 1 . . . . 6 7 7 7 7 6 6 6 6 6 6 6 6 5 5 5 5 5 5 5 5 5 5 5 4 4 4 4 4 4 4 2 Processor 3 | . . . . . . . 3 18 10 15 7 7 7 7 7 6 6 6 3 . . . . . . . . . . 2 . . . . . 4 4 4 4 4 4 4 Hackware 7 | . . . . . . . 8 . 11 7 11 15 15 11 7 6 6 1 9 6 11 13 15 11 17 16 11 11 11 14 21 16 17 19 13 9 9 9 9 8 8 3 Protection 2 | . . . . 1 11 11 9 8 . . . . . 6 8 5 12 5 2 6 6 6 3 . . . . . . . . . . 2 . . . . . . . . Energy Gun 4 | . 23 28 21 20 . . . . . . . . . . . . . . . . . . . . . . . . . . . . . . . . . . . . . . Slashing Weapon 4 | . . . . 1 11 11 8 6 6 7 7 7 7 7 6 6 6 6 6 6 6 6 5 5 5 2 3 5 5 4 5 4 4 5 4 4 4 4 4 4 4 3 Special Melee Weapon 3 | . . . . . 11 11 9 8 6 . 5 7 7 7 7 6 6 5 5 6 6 1 4 5 5 5 5 5 5 3 5 5 3 2 . . . . . . . . Peak Build Rating 208 | 9 12 16 20 19 13 19 34 37 48 48 50 49 49 50 51 56 56 65 76 76 75 76 77 91 91 93 88 95 80 86 83 115 134 163 181 180 180 191 191 207 208 208 Average Rating 66 | 5 10 13 17 17 12 17 28 33 40 48 47 49 49 49 48 54 52 55 69 61 73 72 72 84 91 87 85 84 79 77 81 91 130 142 175 180 180 181 191 203 207 146 On Entrance 80 | . 9 11 15 18 13 12 18 34 25 48 48 49 49 49 50 48 55 54 61 76 58 75 71 76 91 91 88 84 80 80 78 83 115 131 163 180 180 180 191 191 207 208 Avg Prop Armor Cover (%) 8 | 17 12 12 10 8 . . . . . . . . . . . 4 2 6 1 . . . . . . . . 5 . . . . 5 . 7 7 9 9 10 9 8 9 Naked Turns . | . . . . . . . . . . . . . . . . . . . . . . . . . . . . . . . . . . . . . . . . . . . Heaviest Build 71 | 14 32 32 32 36 28 16 17 16 18 15 32 21 21 32 32 29 38 38 42 37 39 39 39 33 33 36 36 34 31 28 27 45 57 62 62 62 62 66 64 66 66 71 Greatest Support 85 | 16 16 42 82 62 60 17 21 22 35 35 35 33 33 33 33 31 38 39 39 39 39 39 39 46 49 46 51 46 40 45 37 52 60 61 71 80 69 79 78 85 78 73 Greatest Overweight (x) 6 | . 1 1 . . . . . . . . . . . . . . . 1 1 . . . . . . . . . . . . 1 . 1 . . . . . . . 6 Average Overweight (x) . | . . . . . . . . . . . . . . . . . . . . . . . . . . . . . . . . . . . . . . . . . . . Largest Inventory Capacity 15 | 8 15 15 15 15 15 15 5 5 5 5 15 10 10 10 10 10 10 10 10 10 10 10 10 10 10 10 10 10 10 10 10 10 15 15 15 15 15 15 15 15 15 15 Average Capacity 10 | 6 12 15 15 15 15 5 5 5 5 5 9 10 10 10 10 10 10 10 10 10 10 10 10 10 10 10 10 10 10 10 10 10 14 15 15 15 15 15 15 15 15 10 Most Carried 15 | 6 14 15 15 15 15 15 5 5 5 5 11 10 10 10 10 9 10 10 10 10 10 10 10 10 10 10 10 10 10 10 10 10 15 15 15 15 15 15 15 14 15 15 Average Carried 9 | 3 8 13 14 14 15 4 4 4 4 5 9 10 10 9 9 8 8 9 9 10 9 9 9 9 10 9 9 9 10 9 10 9 11 13 13 15 15 14 15 13 14 9 Final Capacity 15 | 8 15 15 15 15 15 5 5 5 5 5 10 10 10 10 10 10 10 10 10 10 10 10 10 10 10 10 10 10 10 10 10 10 15 15 15 15 15 15 15 15 15 5 Final Carried 15 | 6 14 14 15 15 15 4 4 5 5 5 10 10 10 9 10 9 10 10 10 10 10 10 10 10 10 10 10 10 10 10 10 10 12 15 15 15 15 15 15 14 15 2 Class Distribution -------------------- 21% | Mutant 18% | Scientist-Sprinter 16% | Bothacker-Sprinter 16% | Sprinter 11% | Commander-Sprinter 8% | Hacker-Sprinter 3% | Scavenger-Sprinter 3% | Trapper-Sprinter Dominant Class ---------------- Mutant | -10/Materials Mutant | -10/Mines Mutant | -9/Materials Mutant | -9/Mines Mutant | -9/Exiles Sprinter | -8/Mines Sprinter | -8/Materials Sprinter | -8/Garrison Scavenger-Sprinter | -7/Factory Sprinter | -7/Waste Hacker-Sprinter | -7/Factory Trapper-Sprinter | -7/Lower Caves Trapper-Sprinter | -7/Lower Caves Sprinter | -7/Data Miner Scientist-Sprinter | -6/Proximity Caves Scientist-Sprinter | -6/Factory Scientist-Sprinter | -6/Garrison Scientist-Sprinter | -6/Factory Commander-Sprinter | -6/Extension Commander-Sprinter | -6/Cetus Commander-Sprinter | -6/Archives Commander-Sprinter | -6/Hub_04(d) Bothacker-Sprinter | -6/Garrison Bothacker-Sprinter | -5/Factory Bothacker-Sprinter | -5/Waste Bothacker-Sprinter | -5/Factory Bothacker-Sprinter | -5/Garrison Bothacker-Sprinter | -5/Factory Bothacker-Sprinter | -5/Garrison Bothacker-Sprinter | -4/Factory Bothacker-Sprinter | -4/Waste Bothacker-Sprinter | -4/Factory Bothacker-Sprinter | -4/Armory Hacker-Sprinter | -4/Lab Hacker-Sprinter | -3/Research Scientist-Sprinter | -3/Garrison Scientist-Sprinter | -3/Research Scientist-Sprinter | -3/Testing Scientist-Sprinter | -3/Garrison Scientist-Sprinter | -2/Research Scientist-Sprinter | -2/Quarantine Scientist-Sprinter | -2/Section 7 Resources | -11 -10 -10 -9 -9 -9 -8 -8 -8 -7 -7 -7 -7 -7 -7 -6 -6 -6 -6 -6 -6 -6 -6 -6 -5 -5 -5 -5 -5 -5 -4 -4 -4 -4 -4 -3 -3 -3 -3 -3 -2 -2 -2 ----------- Run | Yrd Mat Min Mat Min Exi Min Mat Gar Fac Was Fac Low Low Dat Pro Fac Gar Fac Ext Cet Arc Hub Gar Fac Was Fac Gar Fac Gar Fac Was Fac Arm Lab Res Gar Res Tes Gar Res Qua Sec Matter Collected 5426 | 286 186 40 237 20 . 33 212 432 366 119 264 112 . . 83 34 101 65 210 . 60 20 92 92 . 75 4 255 . 263 10 132 892 153 125 . 45 . . . 183 225 Remotely . | . . . . . . . . . . . . . . . . . . . . . . . . . . . . . . . . . . . . . . . . . . . Salvage Created 8378 | 86 647 191 943 40 . . 333 855 838 . 416 . 37 . 35 34 . 370 503 66 179 . 279 26 . 124 42 255 . 465 . 207 866 . 135 . 45 . . . . 361 Parts 469 | 8 30 8 65 . . . 17 42 47 . 23 . 4 . 7 . . 14 14 1 21 . 17 2 . 7 9 15 . 25 . 6 58 . 2 . 2 . . . . 25 Haulers Intercepted 13 | . 1 . 1 . . . 3 . 1 . 1 . . . . . . . . . . . . . . . . . . 2 . 3 . . 1 . . . . . . . Recyclers Shooed 5 | 1 . . . . . . . . 1 . . . . . . . . . 3 . . . . . . . . . . . . . . . . . . . . . . . Parts Field Recycled . | . . . . . . . . . . . . . . . . . . . . . . . . . . . . . . . . . . . . . . . . . . . Retrieved Matter . | . . . . . . . . . . . . . . . . . . . . . . . . . . . . . . . . . . . . . . . . . . . Parts Self-Destructed 7 | . . . . . . . . . . . . . 4 . 3 . . . . . . . . . . . . . . . . . . . . . . . . . . . Prevented . | . . . . . . . . . . . . . . . . . . . . . . . . . . . . . . . . . . . . . . . . . . . Parts Restored . | . . . . . . . . . . . . . . . . . . . . . . . . . . . . . . . . . . . . . . . . . . . Kills | -11 -10 -10 -9 -9 -9 -8 -8 -8 -7 -7 -7 -7 -7 -7 -6 -6 -6 -6 -6 -6 -6 -6 -6 -5 -5 -5 -5 -5 -5 -4 -4 -4 -4 -4 -3 -3 -3 -3 -3 -2 -2 -2 ------- Run | Yrd Mat Min Mat Min Exi Min Mat Gar Fac Was Fac Low Low Dat Pro Fac Gar Fac Ext Cet Arc Hub Gar Fac Was Fac Gar Fac Gar Fac Was Fac Arm Lab Res Gar Res Tes Gar Res Qua Sec Combat Hostiles Destroyed 141 | . 11 4 23 2 . . 1 27 13 . 2 . . . 2 . . . 2 . . . 13 1 . 3 3 4 . 4 . . 19 . . . . . . . . 7 Melee 29 | . . . . . . . 1 8 4 . 2 . . . . . . . 2 . . . 2 1 . . . 4 . . . . 1 . . . . . . . . 4 Guns 34 | . 9 4 16 2 . . . 3 . . . . . . . . . . . . . . . . . . . . . . . . . . . . . . . . . . Cannons 10 | . . . . . . . . . . . . . . . . . . . . . . . . . . . . . . . . . 10 . . . . . . . . . AOE 68 | . 2 . 7 . . . . 16 9 . . . . . 2 . . . . . . . 11 . . 3 3 . . 4 . . 8 . . . . . . . . 3 Classes Destroyed 23 | 2 6 . 2 1 . . 1 2 2 . . . 1 . . . . . 1 . . . 1 1 . . . . . . . . 2 . . . . . . . . 1 Worker 17 | . 1 . . . . . 1 . 2 . . . . . . . . 5 . . . . . 1 . 1 . . . 3 . . . . . . 2 . . . . 1 Builder 3 | . . . 1 . . . . . . . . . . . . . . 2 . . . . . . . . . . . . . . . . . . . . . . . . Tunneler 2 | 1 1 . . . . . . . . . . . . . . . . . . . . . . . . . . . . . . . . . . . . . . . . . Hauler 13 | . 1 . 1 . . . 3 . 1 . 1 . . . . . . . . . . . . . . . . . . 2 . 3 . . 1 . . . . . . . Recycler 13 | 1 1 . 1 . . . . . 2 . 1 . . . . . . 2 3 . . . . . . . . 1 . 1 . . . . . . . . . . . . Minesweeper 1 | . . . . . . . . . . . . . 1 . . . . . . . . . . . . . . . . . . . . . . . . . . . . . Mechanic 3 | . . . . . . . 2 . . . . . . . . . . . . . . . . . . . . . . . . . . . . . . . . . . 1 Operator 17 | . 1 . 1 . . . . . 2 . 2 . . . . . . . . . 5 . 1 . . . . 1 . 1 . . 2 . 1 . . . . . . . Drone 2 | . . . . . . . . . . . . . . . . . . . . . . . . 1 . . . 1 . . . . . . . . . . . . . . Watcher 25 | . 2 . 3 . . . 1 2 6 . 5 . . . . 1 . . . 2 . . . . . 1 . . . . . . 2 . . . . . . . . . Swarmer 54 | . 3 . 11 . . . . 12 2 . . . . . 3 . . . . . . . 11 . . . 3 3 . 4 . . . . . . . . . . . 2 Cutter 11 | . . . . . . . . . 3 . . . . . . . . . . . . . . . . . . . . . . . 5 . . . . . . . . 3 Saboteur 3 | . . . . . . . . . . . . . . . . . . . . . . . . . . . . . . . . . 3 . . . . . . . . . Grunt 29 | . 8 4 5 . . . . 5 4 . . . . . . . . . . . . . . . . . . . . . . . 3 . . . . . . . . . Brawler 1 | . . . . . . . . . . . . . . . . . . . . . . . 1 . . . . . . . . . . . . . . . . . . . Duelist 4 | . . . . . . . . 4 . . . . . . . . . . . . . . . . . . . . . . . . . . . . . . . . . . Researcher 2 | . . . . . . . . . . . . . . . . . . . . . . . . . . . . . . . . . . . . . . . . . . 2 Sentry 17 | . . . 7 . . . 1 4 2 . . . . . . . . . 1 . . . . . . . . . . . . . 2 . . . . . . . . . Specialist 1 | . . . . . . . . . . . . . . . . . . . . . . . . . . . . . . . . . 1 . . . . . . . . . Hunter 3 | . . . . . . . . 2 1 . . . . . . . . . . . . . . . . . . . . . . . . . . . . . . . . . Programmer 12 | . . . . . . . . . 1 . 2 . . . . . . . . . . . 1 . . 3 . . . . . . 5 . . . . . . . . . Behemoth 1 | . . . . . . . . . . . . . . . . . . . 1 . . . . . . . . . . . . . . . . . . . . . . . Tracker 2 | . . . . . . . . . . . . . . . . . . . . . . . . . . . . . . . . . . . . . . . . . . 2 Assembled 2 | . . . . 2 . . . . . . . . . . . . . . . . . . . . . . . . . . . . . . . . . . . . . . Best Kill Streak 10 | 2 3 2 9 2 . . 2 10 7 . 2 . 1 . 2 1 . 4 3 1 2 . 8 1 . 5 3 6 . 6 . 2 7 . 1 . 2 . . . . 5 Combat Bots Only 10 | . 3 2 8 2 . . 1 10 6 . 2 . . . 2 . . . 2 . . . 8 1 . 3 3 4 . 4 . . 7 . . . . . . . . 3 Max Kills in Single Turn 5 | 1 2 2 2 1 . . 1 5 3 . 1 . 1 . 3 1 . 1 1 1 1 . 4 1 . 2 3 1 . 3 . 1 3 . 1 . 1 . . . . 2 Gunslinging 1 | . . 1 . . . . . . . . . . . . . . . . . . . . . . . . . . . . . . . . . . . . . . . . Exploded 5 | . 1 . 2 . . . . 5 2 . . . . . 2 . . . . . . . 4 . . 1 3 . . 3 . . 3 . . . . . . . . 2 Melee 1 | . . . . . . . 1 1 1 . 1 . . . . . . . 1 . . . 1 1 . . . 1 . . . . 1 . . . . . . . . 1 Uniques/NPCs Destroyed 2 | . . . . . . . . . . . . . . . . . . . 1 . . . . . . . . . . . . . . 1 . . . . . . . . 6S-H0T (-6/Extension) A5 (-4/Lab) Combat | -11 -10 -10 -9 -9 -9 -8 -8 -8 -7 -7 -7 -7 -7 -7 -6 -6 -6 -6 -6 -6 -6 -6 -6 -5 -5 -5 -5 -5 -5 -4 -4 -4 -4 -4 -3 -3 -3 -3 -3 -2 -2 -2 -------- Run | Yrd Mat Min Mat Min Exi Min Mat Gar Fac Was Fac Low Low Dat Pro Fac Gar Fac Ext Cet Arc Hub Gar Fac Was Fac Gar Fac Gar Fac Was Fac Arm Lab Res Gar Res Tes Gar Res Qua Sec Hostile Shots Fired 1067 | . 40 16 101 16 23 . 22 73 83 . 6 . . 3 24 . 24 12 58 5 . 15 24 4 . 14 45 30 . 27 . 15 66 . 4 18 . . . 1 4 294 Missed 454 | . 13 3 34 2 12 . 11 35 31 . 5 . . 1 9 . 15 8 32 4 . 8 16 3 . 7 27 11 . 12 . 11 30 . 4 7 . . . 1 2 100 Hits 613 | . 27 13 67 14 11 . 11 38 52 . 1 . . 2 15 . 9 4 26 1 . 7 8 1 . 7 18 19 . 15 . 4 36 . . 11 . . . . 2 194 Melee 15 | . . . . 5 1 . . . . . . . . . . . . . . . . . . . . . . . . . . . 1 . . . . . . . . 8 Projectile 598 | . 27 13 67 9 10 . 11 38 52 . 1 . . 2 15 . 9 4 26 1 . 7 8 1 . 7 18 19 . 15 . 4 35 . . 11 . . . . 2 186 AOE 9 | . . . . . . . . . 3 . . . . . . . 1 . . . . . . . . . . . . . . . 3 . . . . . . . . 2 Critical Strikes 26 | . . 1 2 3 . . 1 . 2 . . . . . . . 2 . 1 . . . . . . 1 1 . . . . . . . . 1 . . . . . 11 Actively Blocked 10 | . . . . . . . . . . . . . . . . . 1 . . . . . . . . . 1 . . . . . . . . . . . . . . 8 Damage Taken 10962 | . 349 176 763 274 164 . 180 712 492 . 12 . . 93 177 . 254 86 412 61 25 84 176 23 . 135 300 290 . 320 . 82 634 . . 135 . . . . 88 4465 Core 2932 | . 105 11 72 74 29 . 74 188 132 . . . . . 37 . 36 . 101 . . 45 15 23 . 36 56 41 . 73 . 21 109 . . 21 . . . . 43 1590 Absorbed by Shields 423 | . . . . . . . . 26 167 . 4 . . . . . 4 . 20 14 . . . . . . . . . . . . 188 . . . . . . . . . Redirected to Shielding 103 | . . . . . . . . . . . . . . . 46 . 41 16 . . . . . . . . . . . . . . . . . . . . . . . . Regen/Repaired (Parts) 1282 | . 54 . . . . . . . 33 . . . . . . 74 . . . . . . . . . 38 . 134 . 30 40 . . 42 . . . . . . 51 786 Core Remaining (%) 75 | 100 . 53 . . . 56 . 52 . . . . . . 75 . . . . . . . 76 . . . . . 84 . . . . 82 . . . . 98 . . . Volleys Fired 283 | 4 47 9 47 7 . . 1 45 11 . . . . . 1 . . . 1 . . . 6 . . 4 1 . 1 3 . 4 81 . . . . . . . 2 8 Largest 2 | 2 2 2 2 2 . . 1 1 1 . . . . . 1 . . . 1 . . . 1 . . 1 1 . 1 2 . 1 1 . . . . . . . 1 1 Hottest 100 | 40 100 90 100 90 . . 30 33 30 . . . . . 36 . . . 70 . . . 36 . . 36 36 . 36 66 . 51 51 . . . . . . . 10 36 Shots Fired 386 | 8 90 18 88 14 . . 1 45 11 . . . . . 1 . . . 1 . . . 6 . . 4 1 . 1 4 . 4 80 . . . . . . . 2 7 Gun 244 | 8 86 18 82 14 . . . 33 . . . . . . . . . . 1 . . . . . . . . . . 2 . . . . . . . . . . . . Cannon 77 | . . . . . . . . . . . . . . . . . . . . . . . . . . . . . . . . 4 73 . . . . . . . . . Launcher 56 | . . . 4 . . . 1 12 11 . . . . . 1 . . . . . . . 6 . . 4 1 . 1 2 . . 7 . . . . . . . . 6 Special 9 | . 4 . 2 . . . . . . . . . . . . . . . . . . . . . . . . . . . . . . . . . . . . . 2 1 Kinetic 129 | 8 8 . . . . . . 33 . . . . . . . . . . 1 . . . . . . . . . . 2 . 4 73 . . . . . . . . . Thermal 6 | . 4 . 2 . . . . . . . . . . . . . . . . . . . . . . . . . . . . . . . . . . . . . . . Explosive 56 | . . . 4 . . . 1 12 11 . . . . . 1 . . . . . . . 6 . . 4 1 . 1 2 . . 7 . . . . . . . . 6 Electromagnetic 192 | . 78 18 82 14 . . . . . . . . . . . . . . . . . . . . . . . . . . . . . . . . . . . . . . Robot Hit Streak 18 | 2 11 7 7 2 . . . 7 14 . . . . . . . . . 18 . . . 2 . . 4 . . . 6 . . 10 . . . . . . . 8 9 Robot Miss Streak 5 | 3 3 3 5 4 . . . 3 . . . . . . . . . . 1 . . . 1 . . . . . . . . 2 4 . . . . . . . . . Penetration Max 1 | . . . . . . . . 1 . . . . . . . . . . . . . . . . . . . . . 1 . . 1 . . . . . . . . . Secondary Targets 6 | . 1 1 3 1 . . . . . . . . . . . . . . . . . . . . . . . . . . . . . . . . . . . . . . Max Gunslinging Chain 1 | . 1 1 1 1 . . . . . . . . . . . . . . . . . . . . . . . . . . . . . . . . . . . . . . Shots Hit Robots 506 | 3 50 13 65 16 . . 13 52 38 . 20 . 1 2 4 1 8 14 42 3 6 . 9 3 . 3 . 11 . 15 . 16 71 12 2 . 2 . . . 1 10 Core Hits 319 | 3 22 6 49 5 . . 8 45 35 . 10 . 1 . 4 . . 6 6 2 2 . 15 1 . 8 3 4 . 9 . 4 39 3 2 . 2 . . . . 25 Critical Kills 11 | . . . . . . . . . . . . . . . . . . . . . . . . . . . . . . . . . 11 . . . . . . . . . Critical Parts Destroyed 18 | . . . . . . . . 4 . . . . . . . . . . . . . . . . . . . . . . . . 14 . . . . . . . . . Critical Strikes 58 | . 1 1 . . . . 1 10 2 . 1 . . . 1 . 1 . 4 . . . . . . . . 1 . 1 . 4 29 . . . . . . . . 1 Destroy 33 | . . . . . . . . 4 . . . . . . . . . . . . . . . . . . . . . . . . 29 . . . . . . . . . Blast 2 | . . . . . . . . . . . . . . . . . . . 2 . . . . . . . . . . . . . . . . . . . . . . . Corrupt 2 | . 1 1 . . . . . . . . . . . . . . . . . . . . . . . . . . . . . . . . . . . . . . . . Sever 21 | . . . . . . . 1 6 2 . 1 . . . 1 . 1 . 2 . . . . . . . . 1 . 1 . 4 . . . . . . . . . 1 Melee Attacks 650 | . . . . 6 . . 32 83 55 . 55 . 4 11 13 6 27 19 50 3 6 15 22 12 . 1 4 33 3 24 . 28 51 17 8 4 3 6 1 6 16 26 Impact . | . . . . . . . . . . . . . . . . . . . . . . . . . . . . . . . . . . . . . . . . . . . Slashing 578 | . . . . 5 . . 31 83 54 . 55 . 4 10 13 6 14 18 24 3 5 15 20 11 . 1 4 33 3 20 . 28 31 17 8 4 3 6 1 6 16 26 Piercing . | . . . . . . . . . . . . . . . . . . . . . . . . . . . . . . . . . . . . . . . . . . . Sneak Attacks 122 | . . . . 2 . . 9 2 5 . 2 . 1 2 . 1 . 9 32 . 6 . 5 3 . . . 5 . 9 . 3 20 . 2 . 2 . . . . 2 Combat Hostiles 6 | . . . . . . . . 2 . . . . . . . . . . 1 . . . . 1 . . . 1 . . . . 1 . . . . . . . . . Follow-up Attacks . | . . . . . . . . . . . . . . . . . . . . . . . . . . . . . . . . . . . . . . . . . . . Damage Inflicted 24803 | 26 1133 255 1506 265 . . 991 3088 2853 . 1038 . 70 83 324 72 31 980 1088 151 545 . 1115 163 . 598 214 703 . 1060 . 858 2090 551 214 . 267 . . . . 2471 Guns 2535 | 26 828 212 1019 150 . . . 172 . . . . . . . . . . 107 . . . . . . . . . . 21 . . . . . . . . . . . . Cannons 878 | . . . . . . . . . . . . . . . . . . . . . . . . . . . . . . . . . 878 . . . . . . . . . Explosions 7807 | . 305 41 487 . . . 16 1399 1200 . . . . . 163 . . . . . . . 827 . . 536 214 . . 335 . . 569 . . . . . . . . 1715 Melee 13577 | . . . . 111 . . 975 1517 1653 . 1038 . 70 83 161 72 31 980 981 151 545 . 288 163 . 62 . 703 . 704 . 858 643 551 214 . 267 . . . . 756 Ramming 6 | . . 2 . 4 . . . . . . . . . . . . . . . . . . . . . . . . . . . . . . . . . . . . . . Kinetic 1256 | 26 52 . . . . . . 172 . . . . . . . . . . 107 . . . . . . . . . . 21 . . 878 . . . . . . . . . Thermal 699 | . 305 41 34 . . . . . . . . . . . . . . . . . . . . . . 319 . . . . . . . . . . . . . . . . Explosive 6888 | . . . 453 . . . 16 1399 980 . . . . . 163 . . . . . . . 827 . . 217 214 . . 335 . . 569 . . . . . . . . 1715 Electromagnetic 2377 | . 776 212 1019 150 . . . . 220 . . . . . . . . . . . . . . . . . . . . . . . . . . . . . . . . . Impact . | . . . . . . . . . . . . . . . . . . . . . . . . . . . . . . . . . . . . . . . . . . . Slashing 13577 | . . . . 111 . . 975 1517 1653 . 1038 . 70 83 161 72 31 980 981 151 545 . 288 163 . 62 . 703 . 704 . 858 643 551 214 . 267 . . . . 756 Piercing . | . . . . . . . . . . . . . . . . . . . . . . . . . . . . . . . . . . . . . . . . . . . Highest Corruption 15 | . . . . . . . 1 3 1 1 1 . . . . . . . . . . . 1 . . 1 1 1 1 . . . 1 1 . . . . . . 5 15 Average Corruption 2 | . . . . . . . 1 1 1 1 1 . . . . . . . . . . . 1 . . 1 1 1 1 . . . 1 1 . . . . . . 5 5 Corruption Purged 3 | . . . . . . . . . . . 3 . . . . . . . . . . . . . . . . . . . . . . . . . . . . . . . Corruption Blocked . | . . . . . . . . . . . . . . . . . . . . . . . . . . . . . . . . . . . . . . . . . . . Effects 48 | . . . . . . . 1 4 3 1 1 . . . . . . . . . . . . . . 1 1 5 1 . . . 1 2 . . . . . . 20 7 Message Errors 14 | . . . . . . . . 1 . . 1 . . . . . . . . . . . . . . . . 1 1 . . . . . . . . . . . 9 1 Matter Fused 15 | . . . . . . . 1 . 2 1 . . . . . . . . . . . . . . . 1 . 2 . . . . . . . . . . . . 6 2 Heat Flow Errors 5 | . . . . . . . . 1 . . . . . . . . . . . . . . . . . . 1 . . . . . . 1 . . . . . . 2 . Energy Discharges 3 | . . . . . . . . . . . . . . . . . . . . . . . . . . . . 1 . . . . . 1 . . . . . . 1 . Parts Rejected 4 | . . . . . . . . . . . . . . . . . . . . . . . . . . . . . . . . . . . . . . . . . 1 3 Parts Fused 1 | . . . . . . . . 1 . . . . . . . . . . . . . . . . . . . . . . . . . . . . . . . . . . Data Loss (minor) 4 | . . . . . . . . 1 1 . . . . . . . . . . . . . . . . . . 1 . . . . . . . . . . . . 1 . Weapon Failures 2 | . . . . . . . . . . . . . . . . . . . . . . . . . . . . . . . . . 1 . . . . . . . . 1 Overload Shots . | . . . . . . . . . . . . . . . . . . . . . . . . . . . . . . . . . . . . . . . . . . . Overflow Damage 2271 | . 24 . . . . . 74 209 241 . 63 . . 23 25 37 . 276 125 . 221 . 74 39 . 12 . 99 . 237 . 12 82 . . . . . . . . 398 Projectiles . | . . . . . . . . . . . . . . . . . . . . . . . . . . . . . . . . . . . . . . . . . . . Explosions 367 | . 24 . . . . . . 56 55 . . . . . . . . . . . . . 13 . . . . . . 45 . . 5 . . . . . . . . 169 Melee 1904 | . . . . . . . 74 153 186 . 63 . . 23 25 37 . 276 125 . 221 . 61 39 . 12 . 99 . 192 . 12 77 . . . . . . . . 229 Knockbacks 2 | . . . . . . . . . . . . . . . . . . . . . . . . . . . . . . . . . 2 . . . . . . . . . Impact . | . . . . . . . . . . . . . . . . . . . . . . . . . . . . . . . . . . . . . . . . . . . Kinetic 2 | . . . . . . . . . . . . . . . . . . . . . . . . . . . . . . . . . 2 . . . . . . . . . Secondary . | . . . . . . . . . . . . . . . . . . . . . . . . . . . . . . . . . . . . . . . . . . . Self-Inflicted Damage 412 | . . . 33 . . . 18 210 32 . . . . . . . . . . . . . 17 . . . . . . . . . . . . . . . . . . 102 Shots 13 | . . . 1 . . . 1 6 1 . . . . . . . . . . . . . 1 . . . . . . . . . . . . . . . . . . 3 Rammed 2 | . . 1 . 1 . . . . . . . . . . . . . . . . . . . . . . . . . . . . . . . . . . . . . . Targets Rammed 2 | . . 1 . 1 . . . . . . . . . . . . . . . . . . . . . . . . . . . . . . . . . . . . . . Kicked . | . . . . . . . . . . . . . . . . . . . . . . . . . . . . . . . . . . . . . . . . . . . Crushed . | . . . . . . . . . . . . . . . . . . . . . . . . . . . . . . . . . . . . . . . . . . . Highest Temperature 283 | . 217 240 95 105 . 43 28 114 20 35 55 105 81 38 203 142 267 228 63 15 . 5 84 2 117 11 61 261 . . . 154 . . 143 180 . 100 144 92 283 14 Average Temperature 39 | . 66 107 30 46 . 17 4 20 4 16 15 49 37 21 84 43 93 77 19 15 . 5 58 2 52 3 32 115 . . . 62 . . 76 84 . 47 102 92 98 6 Received Heat Transfer 1442 | . 174 117 225 . 20 . 90 132 153 . . . . . 6 . 30 18 87 . . 15 12 9 . 36 9 9 . 51 . . 78 . . 9 . . . . . 162 Effects 3 | . . . . . . . . . . . . . . . . . 1 2 . . . . . . . . . . . . . . . . . . . . . . . . Interference 3 | . . . . . . . . . . . . . . . . . 1 2 . . . . . . . . . . . . . . . . . . . . . . . . Siege Activations . | . . . . . . . . . . . . . . . . . . . . . . . . . . . . . . . . . . . . . . . . . . . Martial Activations . | . . . . . . . . . . . . . . . . . . . . . . . . . . . . . . . . . . . . . . . . . . . Shielding Activations . | . . . . . . . . . . . . . . . . . . . . . . . . . . . . . . . . . . . . . . . . . . . Robots Disrupted 1 | . . . . . . . . . 1 . . . . . . . . . . . . . . . . . . . . . . . . . . . . . . . . . Combat Hostiles 1 | . . . . . . . . . 1 . . . . . . . . . . . . . . . . . . . . . . . . . . . . . . . . . Robots Corrupted . | . . . . . . . . . . . . . . . . . . . . . . . . . . . . . . . . . . . . . . . . . . . Combat Hostiles . | . . . . . . . . . . . . . . . . . . . . . . . . . . . . . . . . . . . . . . . . . . . Parts Fried 8 | . 4 . 3 . . . . . 1 . . . . . . . . . . . . . . . . . . . . . . . . . . . . . . . . . Impact Corruptions . | . . . . . . . . . . . . . . . . . . . . . . . . . . . . . . . . . . . . . . . . . . . Robots Melted . | . . . . . . . . . . . . . . . . . . . . . . . . . . . . . . . . . . . . . . . . . . . Combat Hostiles . | . . . . . . . . . . . . . . . . . . . . . . . . . . . . . . . . . . . . . . . . . . . Parts Melted 1 | . . . 1 . . . . . . . . . . . . . . . . . . . . . . . . . . . . . . . . . . . . . . . Heat Transferred 650 | . 400 50 50 . . . . . . . . . . . . . . . . . . . . . . 150 . . . . . . . . . . . . . . . . Parts Sabotaged . | . . . . . . . . . . . . . . . . . . . . . . . . . . . . . . . . . . . . . . . . . . . Parts Stolen . | . . . . . . . . . . . . . . . . . . . . . . . . . . . . . . . . . . . . . . . . . . . Parts Stripped . | . . . . . . . . . . . . . . . . . . . . . . . . . . . . . . . . . . . . . . . . . . . Power Chain Reactions 7 | . 5 1 1 . . . . . . . . . . . . . . . . . . . . . . . . . . . . . . . . . . . . . . . Alert | -11 -10 -10 -9 -9 -9 -8 -8 -8 -7 -7 -7 -7 -7 -7 -6 -6 -6 -6 -6 -6 -6 -6 -6 -5 -5 -5 -5 -5 -5 -4 -4 -4 -4 -4 -3 -3 -3 -3 -3 -2 -2 -2 ------- Run | Yrd Mat Min Mat Min Exi Min Mat Gar Fac Was Fac Low Low Dat Pro Fac Gar Fac Ext Cet Arc Hub Gar Fac Was Fac Gar Fac Gar Fac Was Fac Arm Lab Res Gar Res Tes Gar Res Qua Sec Maximum Alert Level 3 | . . . 1 . . . 1 3 3 1 1 . . . . . 1 1 1 1 1 1 3 1 . . 1 1 1 1 . 1 3 . 1 1 1 1 1 1 . 2 Low Security (%) 64 | 100 100 100 40 100 . 100 81 6 . 60 55 . . . . 100 63 97 89 97 61 89 36 91 100 100 94 97 64 78 100 24 15 . 49 36 68 34 . 54 100 49 Level 1 18 | . . . 59 . . . 18 8 . 39 44 . . . . . 36 2 10 2 38 10 29 8 . . 5 2 36 21 . 75 9 . 50 63 31 65 100 45 . 5 Level 2 7 | . . . . . . . . 30 40 . . . . . . . . . . . . . 30 . . . . . . . . . 33 . . . . . . . . 44 Level 3 9 | . . . . . . . . 53 59 . . . . . . . . . . . . . 3 . . . . . . . . . 40 . . . . . . . . . Level 4 . | . . . . . . . . . . . . . . . . . . . . . . . . . . . . . . . . . . . . . . . . . . . Level 5 . | . . . . . . . . . . . . . . . . . . . . . . . . . . . . . . . . . . . . . . . . . . . High Security . | . . . . . . . . . . . . . . . . . . . . . . . . . . . . . . . . . . . . . . . . . . . Max Security . | . . . . . . . . . . . . . . . . . . . . . . . . . . . . . . . . . . . . . . . . . . . Peak Influence 1064 | 5 134 85 359 111 . . 245 1064 974 330 301 . . . . 71 359 201 261 201 235 224 744 390 45 164 225 202 201 292 101 365 835 . 225 253 209 287 263 271 189 671 Initial 548 | . . 45 3 111 . . 5 113 548 330 79 . . . . 42 15 165 30 57 68 43 156 390 45 31 94 117 127 105 101 7 130 . . 153 135 111 200 147 152 . Average 223 | . 56 26 210 52 . . 141 684 766 194 133 . . . . 28 150 146 97 130 177 85 349 131 45 97 112 103 182 134 59 209 565 . 148 209 176 223 214 204 27 338 Influence Increases 13826 | 10 493 111 728 108 . 15 447 1031 889 13 709 . 5 . 158 173 510 157 628 324 227 427 648 149 . 164 231 335 74 523 . 879 1303 . 318 127 84 236 63 164 249 1116 Destroy 0b10 Robot/C 4620 | . 220 80 460 60 . . 20 560 260 . 280 . . . 40 60 160 . 300 160 80 80 280 . . 60 60 100 . 80 . 260 560 . . 20 . . . . . 380 Destroy 0b10 Robot/NC 515 | 10 35 . 35 . . . 35 15 65 . 45 . 5 . . 5 . 45 30 10 25 5 5 10 . 10 . 15 . 35 . 25 20 . 10 . 10 . . . . 10 Destroy Leader 742 | . 56 20 108 10 . . 18 20 74 . 72 . . . 10 22 10 . 14 . . 10 20 . . 12 10 10 . 14 . 46 114 . 2 . . . . . . 70 Allied During Kill 973 | . . . . 8 . . . 1 . . 72 . . . 3 7 26 . 195 134 105 2 5 . . . . 1 . . . 286 107 . 1 5 . . . . . 15 Trap Triggered on 0b10 50 | . . . . . . . . . 10 . . . . . . . . . . . . . 30 . . . . . . . . 10 . . . . . . . . . . Successful Hack 1714 | . 24 5 21 . . . 49 21 154 . 143 . . . . 45 . 33 52 15 . . 24 46 . 38 14 47 32 81 . 78 115 . 143 10 72 138 46 101 90 77 Select Force Hacks 280 | . 60 . 60 . . . . . 40 . . . . . . . . 30 . . . . . 30 . . . . . 60 . . . . . . . . . . . . Disable Machine 690 | . 60 . 15 . . . . . 75 . 30 . . . . 15 . 15 . . 15 75 45 . . 30 . . 30 15 . 30 90 . . . . 30 . . 30 90 Anti-Garrison Action 350 | . . . . . . . . 200 . . . . . . . . 100 . . . . . 50 . . . . . . . . . . . . . . . . . . . Destroy Structure 1222 | . 23 6 29 . . . 25 154 46 13 22 . . . . 4 34 4 22 5 2 30 69 18 . 14 42 42 12 58 . 84 132 . 12 17 2 8 2 18 99 174 Partial Spotted 765 | . . . . . . . 45 60 75 . 30 . . . . 15 . 15 . . . 60 30 15 . . 30 45 . 45 . 30 75 . 15 75 . . 15 45 15 30 Lose Combat Pursuer 1905 | . 15 . . 30 . 15 255 . 90 . 15 . . . 105 . 180 15 15 . . 165 90 30 . . 75 75 . 135 . 30 90 . 135 . . 60 . . 15 270 Influence Decreases 13160 | 10 376 218 451 395 . . 287 162 990 843 821 1 . 5 90 219 217 408 588 257 273 328 128 764 84 74 141 378 55 433 280 624 788 781 114 91 125 168 67 156 520 450 Entered New Map 4402 | . . 72 7 176 . . 10 62 496 613 34 1 . 5 . 26 7 150 34 47 103 82 68 354 84 14 41 108 55 96 190 4 136 781 . 51 105 88 67 116 119 . Time Decay 5105 | 10 366 130 434 179 . . 277 . 404 70 435 . . . 90 185 . 238 398 170 150 70 . 80 . 50 . 180 . 96 90 100 342 . 80 . 20 70 . 40 241 110 Lost Part 615 | . 10 16 10 . . . . 80 70 . 10 . . . . . 10 10 9 20 . . 20 . . 10 20 50 . 20 . . 10 . . . . . . . . 240 Lost Ally 2138 | . . . . 40 . . . 20 20 160 192 . . . . 8 200 10 147 20 20 176 40 30 . . 80 40 . 71 . 370 300 . 34 40 . 10 . . 10 100 Purge Threat 900 | . . . . . . . . . . . 150 . . . . . . . . . . . . 300 . . . . . 150 . 150 . . . . . . . . 150 . Squads Dispatched 97 | . 5 1 6 . . . 3 . 15 . 8 . . . . 3 . 3 . . . 3 . 2 . 2 . 3 . 3 . 4 12 . 3 . . 3 . 1 4 13 Investigation 40 | . 4 1 4 . . . 2 . 9 . 3 . . . . 3 . 1 . . . . . 2 . 2 . 1 . 3 . . 1 . 1 . . 1 . . . 2 Extermination 17 | . . . . . . . . . 2 . 4 . . . . . . 1 . . . . . . . . . 2 . . . . 3 . 2 . . . . 1 2 . Reinforcement 31 | . 1 . 2 . . . 1 . 3 . 1 . . . . . . . . . . 3 . . . . . . . . . 4 5 . . . . 2 . . 1 8 Assault 2 | . . . . . . . . . 1 . . . . . . . . . . . . . . . . . . . . . . . 1 . . . . . . . . . Garrison 2 | . . . . . . . . . . . . . . . . . . . . . . . . . . . . . . . . . . . . . . . . . . 2 Intercept 5 | . . . . . . . . . . . . . . . . . . 1 . . . . . . . . . . . . . . 2 . . . . . . . 1 1 Searches Triggered . | . . . . . . . . . . . . . . . . . . . . . . . . . . . . . . . . . . . . . . . . . . . Unchained Authorized 4 | . . . . . . . . . . . . . . . . . . . 1 . . . . . . 1 . . . . . . . . . . . 1 . . 1 . Construction Impeded 3 | . . . . . . . . . . . . . . . . . . . . . . 1 . . . . . . . . . 1 . . . . . . . . . 1 Haulers Reinforced 7 | . . . . . . . . . 1 . 1 . . . . . . . . . . . . . . . . . . . . 2 . . . . . . . . . 3 Active Scanning Responses . | . . . . . . . . . . . . . . . . . . . . . . . . . . . . . . . . . . . . . . . . . . . Cargo Convoy Interrupts . | . . . . . . . . . . . . . . . . . . . . . . . . . . . . . . . . . . . . . . . . . . . Alert ID Control Effect 20 | . . . . . . . . . . . . . . . . . . . . . . . . . . . . . . . . . 7 . 2 . . . . . 9 2 Stealth | -11 -10 -10 -9 -9 -9 -8 -8 -8 -7 -7 -7 -7 -7 -7 -6 -6 -6 -6 -6 -6 -6 -6 -6 -5 -5 -5 -5 -5 -5 -4 -4 -4 -4 -4 -3 -3 -3 -3 -3 -2 -2 -2 --------- Run | Yrd Mat Min Mat Min Exi Min Mat Gar Fac Was Fac Low Low Dat Pro Fac Gar Fac Ext Cet Arc Hub Gar Fac Was Fac Gar Fac Gar Fac Was Fac Arm Lab Res Gar Res Tes Gar Res Qua Sec Distress Signals 35 | . . . 1 . . . 1 . 3 . . . . . . . . . . 2 . 1 . 1 . . . . . 4 . 8 3 . 3 . . . . 1 2 5 Communications Jammed . | . . . . . . . . . . . . . . . . . . . . . . . . . . . . . . . . . . . . . . . . . . . Distress Signals . | . . . . . . . . . . . . . . . . . . . . . . . . . . . . . . . . . . . . . . . . . . . Times Spotted 556 | . 22 4 39 6 7 3 25 37 38 6 22 . . 4 9 1 23 3 19 11 . 15 13 6 5 9 15 20 . 24 1 16 54 1 10 13 2 8 . 3 12 50 Peak Tracking Total 26 | . 5 2 8 3 8 3 11 12 7 6 4 . . 3 6 1 13 2 4 5 . 14 7 4 5 5 14 6 . 9 1 11 8 1 9 8 1 7 . 4 4 26 Tactical Retreats 55 | . 1 . . 1 . 1 7 . 4 . 1 . . . 4 . 5 1 1 . . 3 2 2 . . 1 2 . 4 . 1 3 . 3 . . 1 . . 1 6 Traps | -11 -10 -10 -9 -9 -9 -8 -8 -8 -7 -7 -7 -7 -7 -7 -6 -6 -6 -6 -6 -6 -6 -6 -6 -5 -5 -5 -5 -5 -5 -4 -4 -4 -4 -4 -3 -3 -3 -3 -3 -2 -2 -2 ------- Run | Yrd Mat Min Mat Min Exi Min Mat Gar Fac Was Fac Low Low Dat Pro Fac Gar Fac Ext Cet Arc Hub Gar Fac Was Fac Gar Fac Gar Fac Was Fac Arm Lab Res Gar Res Tes Gar Res Qua Sec Traps Triggered 22 | . 3 . 1 . . . . 4 1 . 1 . . . . . 2 1 . . . . . 1 . . . 1 . 3 . . . . 1 . . . 1 . 2 . Indirectly . | . . . . . . . . . . . . . . . . . . . . . . . . . . . . . . . . . . . . . . . . . . . Trap Hack Attempts 157 | . . . . . . . . . 33 . 36 . . . . . 30 . 58 . . . . . . . . . . . . . . . . . . . . . . . Triggered . | . . . . . . . . . . . . . . . . . . . . . . . . . . . . . . . . . . . . . . . . . . . Disarmed 13 | . . . . . . . . . 2 . . . . . . . 1 . . . . . . . . . . . . . . 6 . . . . . . . 4 . . Reprogrammed 32 | . . . . . . . . . 2 . 12 . . . . . . . 6 . . . . . . 4 . . . . . 4 . . . . . 4 . . . . Reused 13 | . . . . . . . . . 1 . . . . 6 . . . . 2 . . . 3 . . . . . . . . 1 . . . . . . . . . . Traps Extracted 18 | . . . . . . . . . . . 12 . . . . . . . 6 . . . . . . . . . . . . . . . . . . . . . . . Installed 13 | . . . . . . . . . . . . . . 6 . . . . 3 . . . 4 . . . . . . . . . . . . . . . . . . . Triggered 5 | . . . . . . . . . 1 . . . . . . . . . . . . . 3 . . . . . . . . 1 . . . . . . . . . . Most Traps Carried 12 | . . . . . . . . . . . 12 12 12 12 6 6 6 6 6 4 4 4 4 . . . . . . . . . . . . . . . . . . . Machines | -11 -10 -10 -9 -9 -9 -8 -8 -8 -7 -7 -7 -7 -7 -7 -6 -6 -6 -6 -6 -6 -6 -6 -6 -5 -5 -5 -5 -5 -5 -4 -4 -4 -4 -4 -3 -3 -3 -3 -3 -2 -2 -2 ---------- Run | Yrd Mat Min Mat Min Exi Min Mat Gar Fac Was Fac Low Low Dat Pro Fac Gar Fac Ext Cet Arc Hub Gar Fac Was Fac Gar Fac Gar Fac Was Fac Arm Lab Res Gar Res Tes Gar Res Qua Sec Machines Disabled 59 | . 4 . 1 . . . . 4 5 . 2 . . . . 1 2 1 . . 1 5 6 . . 2 . . 2 3 . 2 6 2 . . . 2 . . 2 6 Max in Single Turn 4 | . 1 . 1 . . . . 1 4 . 1 . . . . 1 1 1 . . . 1 2 . . 1 . . 2 1 . . 1 1 . . . 1 . . 1 2 Garrison Access 7 | . . . . . . . . . 2 . 2 . . . . . . . . . . . . 1 . . . . . 1 . 1 . . . . . . . . . . Garrison Relay 7 | . . . . . . . . 4 . . . . . . . . 2 . . . . . 1 . . . . . . . . . . . . . . . . . . . Network Hub 4 | . . . . . . . . . . . . . . . . . . . . . . 4 . . . . . . . . . . . . . . . . . . . . Machines Repaired . | . . . . . . . . . . . . . . . . . . . . . . . . . . . . . . . . . . . . . . . . . . . Machines Dismantled 6 | . . . . . . . . . . . . . . . . . . 1 . . . 4 . . . . . . . . . . . 1 . . . . . . . . Machines Sabotaged . | . . . . . . . . . . . . . . . . . . . . . . . . . . . . . . . . . . . . . . . . . . . Overloaded Fab Kills . | . . . . . . . . . . . . . . . . . . . . . . . . . . . . . . . . . . . . . . . . . . . Hacking | -11 -10 -10 -9 -9 -9 -8 -8 -8 -7 -7 -7 -7 -7 -7 -6 -6 -6 -6 -6 -6 -6 -6 -6 -5 -5 -5 -5 -5 -5 -4 -4 -4 -4 -4 -3 -3 -3 -3 -3 -2 -2 -2 --------- Run | Yrd Mat Min Mat Min Exi Min Mat Gar Fac Was Fac Low Low Dat Pro Fac Gar Fac Ext Cet Arc Hub Gar Fac Was Fac Gar Fac Gar Fac Was Fac Arm Lab Res Gar Res Tes Gar Res Qua Sec Machines Accessed 212 | . 9 2 10 . . . 11 5 28 . 22 . . 4 . 6 1 4 11 3 . 4 1 6 . 7 1 9 1 9 . 9 5 3 6 1 2 8 1 4 11 8 Terminals 128 | . 6 1 6 . . . 7 5 14 . 15 . . . . 2 1 3 11 3 . 3 1 2 . 2 1 4 1 5 . 4 3 . 1 1 1 5 1 4 9 6 Fabricators 26 | . . . . . . . . . 6 . 3 . . . . 1 . . . . . . . 2 . 3 . 1 . . . 3 2 . 3 . . 2 . . . . Repair Stations 13 | . 1 . 2 . . . . . 4 . . . . . . 1 . . . . . . . . . 1 . 1 . 1 . . . . . . . . . . 1 1 Recycling Units 6 | . 2 . 2 . . . 2 . . . . . . . . . . . . . . . . . . . . . . . . . . . . . . . . . . . Scanalyzers 14 | . . . . . . . 1 . 2 . 2 . . . . 1 . 1 . . . . . 1 . . . 1 . 2 . 1 . . 1 . 1 . . . . . Garrison Access 17 | . . . . . . . 1 . 2 . 2 . . . . 1 . . . . . 1 . 1 . 1 . 2 . 1 . 1 . . 1 . . 1 . . 1 1 Total Hacks 975 | . 28 6 31 . . . 58 9 85 . 75 . . 31 . 20 2 12 27 8 . 13 7 36 . 29 4 57 5 58 . 78 48 23 41 7 12 45 6 30 54 30 Successful 579 | . 15 2 14 . . . 34 2 36 . 50 . . 31 . 12 . 8 16 3 . 13 4 23 . 22 1 38 3 23 . 50 21 23 22 2 8 29 4 18 36 16 Failed 394 | . 13 4 17 . . . 24 7 49 . 25 . . . . 8 2 4 11 5 . . 3 12 . 7 3 19 2 35 . 27 27 . 19 5 4 16 2 12 18 14 Catastrophic 41 | . 1 . 1 . . . 2 1 6 . 3 . . . . 1 . . 1 1 . . 1 . . 1 1 3 1 1 . 1 2 . 1 1 1 . 1 1 3 5 Database Lockouts 2 | . . . . . . . . . . . . . . . . . . . . . . . . 1 . . . . . . . 1 . . . . . . . . . . Manual 557 | . 23 2 24 . . . 42 . 59 . 51 . . . . 3 . 5 14 1 . 9 6 16 . 22 4 40 5 22 . 44 29 . 18 5 2 28 4 23 33 23 Terminals 627 | . 21 5 23 . . . 41 9 47 . 55 . . . . 5 2 6 27 8 . 12 7 15 . 7 4 39 5 47 . 53 34 . 5 7 8 26 6 30 47 26 Fabricators 119 | . . . . . . . . . 19 . 9 . . . . 4 . . . . . . . 8 . 15 . 2 . . . 20 14 . 15 . . 13 . . . . Repair Stations 32 | . 5 . 6 . . . . . 5 . . . . . . 3 . . . . . . . . . 1 . 5 . 4 . . . . . . . . . . 2 1 Recycling Units 8 | . 2 . 2 . . . 4 . . . . . . . . . . . . . . . . . . . . . . . . . . . . . . . . . . . Scanalyzers 84 | . . . . . . . 9 . 12 . 8 . . . . 6 . 6 . . . . . 12 . . . 3 . 6 . 4 . . 14 . 4 . . . . . Garrison Access 50 | . . . . . . . 4 . 2 . 3 . . . . 2 . . . . . 1 . 1 . 6 . 8 . 1 . 1 . . 7 . . 6 . . 5 3 Terminal Hacks 210 | . 2 2 4 . . . 7 2 6 . 14 . . 31 . 1 . 2 7 3 . 4 2 5 . 4 1 10 1 10 . 17 8 23 2 2 3 10 4 9 11 3 Record 37 | . . . . . . . . . . . . . . 11 . . . . . 2 . . . . . . . . . 1 . . . 22 . . . . . . 1 . Part Schematic 34 | . . . 1 . . . . . 1 . 4 . . 13 . . . . 1 . . . . 1 . . . 2 . 3 . 2 1 . . . . 2 . 3 . . Robot Schematic 5 | . . . . . . . . . . . . . . 4 . . . . . . . . . 1 . . . . . . . . . . . . . . . . . . Robot Analysis 4 | . 2 . 1 . . . 1 . . . . . . . . . . . . . . . . . . . . . . . . . . . . . . . . . . . Prototype ID Bank 19 | . . . . . . . 2 . . . 2 . . 3 . 1 . 1 . . . 1 . 1 . . . 1 . 2 . 1 1 . . . 1 . . . 2 . Open Door 8 | . . 1 . . . . . 1 . . . . . . . . . . 4 1 . . . . . . . . . . . . . . . . . . . . 1 . Level Access Points 1 | . . . . . . . . . . . . . . . . . . . . . . . . . . . . . . . . . . . . . . . . . . 1 Branch Access Points 6 | . . . . . . . . . . . 1 . . . . . . . . . . . . . . . . 1 . . . 1 . . 1 . 1 . . 1 . . Emergency Access Points 3 | . . . . . . . . . . . . . . . . . . . . . . 1 . . . . . 1 . . . . . . . . . . 1 . . . Terminal Index 5 | . . . 1 . . . . . 1 . 1 . . . . . . . . . . . . . . . . 1 . . . . 1 . . . . . . . . . Unreport Threat 6 | . . . . . . . . . . . 1 . . . . . . . . . . . . 2 . . . . . 1 . 1 . . . . . . . . 1 . Locate Traps 11 | . . . . . . . . . . . . . . . . . . 1 . . . 1 . . . 1 . . . 1 . 2 2 . . . . 1 . 1 1 . Disarm Traps 2 | . . . . . . . . . . . . . . . . . . . . . . . . . . . . . . . . 1 . . . . . . . 1 . . Reprogram Traps 4 | . . . . . . . . . . . . . . . . . . . . . . . . . . 2 . . . . . 1 . . . . . 1 . . . . Maintenance Status 2 | . . . . . . . . . . . . . . . . . . . 1 . . . . . . . . . . . . 1 . . . . . . . . . . Transport Status 1 | . . . . . . . . . . . . . . . . . . . . . . . . . . . . . . . . 1 . . . . . . . . . . Investigation Status 1 | . . . . . . . . . . . . . . . . . . . . . . . . . . . . . . . . 1 . . . . . . . . . . Extermination Status 1 | . . . . . . . . . . . . . . . . . . . . . . . . . . . . . . . . 1 . . . . . . . . . . Recall Extermination 3 | . . . . . . . . . 1 . 1 . . . . . . . . . . . . . . . . . . . . . . . . . . . . 1 . . Recall Reinforcements 1 | . . . . . . . . . . . . . . . . . . . . . . . . . . . . . . . . . . . . . . 1 . . . . Hauler Manifests 1 | . . . . . . . . . . . . . . . . . . . . . . . . . . . . . . . . 1 . . . . . . . . . . Registered Components 6 | . . . . . . . . . 1 . . . . . . . . . . . . . . . . . . 1 . . . 1 1 . . . . 1 . . 1 . Registered Prototypes 1 | . . . . . . . . . . . . . . . . . . . . . . . . . . . . . . . . . . . . . . 1 . . . . Zone Layout 37 | . . 1 1 . . . 4 . 2 . 4 . . . . . . . 1 . . 1 . . . 1 . 3 . 2 . 2 2 . 1 . 1 3 . 2 4 2 Garrison Registry 6 | . . . . . . . . 1 . . . . . . . . . . . . . . 1 . . . 1 . 1 . . . . . . 1 . . 1 . . . Patrol Navigation 3 | . . . . . . . . . . . . . . . . . . . . . . . 1 . . . . . . . . . . . . 1 . . 1 . . . Security Stations 1 | . . . . . . . . . . . . . . . . . . . . . . . . . . . . . . . . . . . . . . . 1 . . . Release Object 1 | . . . . . . . . . . . . . . . . . . . . . . . . . . . . . . . . . . 1 . . . . . . . . Fabricator Hacks 27 | . . . . . . . . . 3 . 3 . . . . 1 . . . . . . . 2 . 3 . . . . . 7 2 . 2 . . 4 . . . . Network Status 8 | . . . . . . . . . 2 . 1 . . . . 1 . . . . . . . 1 . . . . . . . 1 . . 1 . . 1 . . . . Load Schematic 9 | . . . . . . . . . 1 . 1 . . . . . . . . . . . . 1 . 1 . . . . . 3 . . . . . 2 . . . . Build 10 | . . . . . . . . . . . 1 . . . . . . . . . . . . . . 2 . . . . . 3 2 . 1 . . 1 . . . . Repair Station Hacks 12 | . 4 . 1 . . . . . . . . . . . . 2 . . . . . . . . . . . 2 . 1 . . . . . . . . . . 2 . Scan Component 6 | . 2 . 1 . . . . . . . . . . . . 1 . . . . . . . . . . . 1 . . . . . . . . . . . . 1 . Repair 5 | . 2 . . . . . . . . . . . . . . 1 . . . . . . . . . . . 1 . . . . . . . . . . . . 1 . Refit 1 | . . . . . . . . . . . . . . . . . . . . . . . . . . . . . . 1 . . . . . . . . . . . . Recycling Unit Hacks . | . . . . . . . . . . . . . . . . . . . . . . . . . . . . . . . . . . . . . . . . . . . Scanalyzer 50 | . . . . . . . 8 . 5 . 5 . . . . 4 . 4 . . . . . 7 . . . 3 . 1 . 2 . . 7 . 4 . . . . . Insert Component 15 | . . . . . . . 2 . . . 2 . . . . 2 . 1 . . . . . 3 . . . 1 . . . . . . 3 . 1 . . . . . Analyze 12 | . . . . . . . 2 . . . 2 . . . . 2 . 1 . . . . . 3 . . . 1 . . . . . . . . 1 . . . . . Retrieve Study 23 | . . . . . . . 4 . 5 . 1 . . . . . . 2 . . . . . 1 . . . 1 . 1 . 2 . . 4 . 2 . . . . . Garrison Access Hacks 17 | . . . . . . . 1 . 2 . 3 . . . . 1 . . . . . 1 . 1 . 1 . 2 . 1 . 1 . . 1 . . 1 . . . 1 Unlock Access 9 | . . . . . . . 1 . . . . . . . . 1 . . . . . 1 . . . 1 . 2 . . . . . . 1 . . 1 . . . 1 Seal Access 7 | . . . . . . . . . 2 . 2 . . . . . . . . . . . . 1 . . . . . 1 . 1 . . . . . . . . . . Coupler Status 1 | . . . . . . . . . . . 1 . . . . . . . . . . . . . . . . . . . . . . . . . . . . . . . Unauthorized Hacks 263 | . 9 . 9 . . . 18 . 20 . 25 . . . . 3 . 2 9 . . 8 2 8 . 14 . 21 2 10 . 23 11 . 10 . 1 14 . 9 23 12 Terminals 180 | . 7 . 7 . . . 17 . 11 . 20 . . . . . . 1 9 . . 8 2 4 . 2 . 14 2 7 . 16 7 . 1 . 1 7 . 9 18 10 Track 37 | . . . . . . . 4 . . . 3 . . . . . . . . . . 3 1 1 . 1 . 3 1 2 . 4 2 . . . . . . 3 6 3 Assimilate 20 | . 1 . . . . . 1 . 2 . 4 . . . . . . 1 1 . . . . 1 . . . 2 . . . 3 . . . . 1 . . . 3 . Botnet 46 | . 1 . 2 . . . 2 . 3 . 6 . . . . . . . 3 . . 1 1 1 . 1 . 3 1 4 . 4 2 . . . . 3 . 3 3 2 Disrupt 9 | . . . . . . . 4 . . . 1 . . . . . . . . . . 1 . . . . . 1 . 1 . . . . . . . . . . . 1 Operators 4 | . . . . . . . 1 . . . . . . . . . . . . . . . . . . . . 1 . . . 1 . . . . . . . . 1 . Skim 64 | . 5 . 5 . . . 5 . 6 . 6 . . . . . . . 5 . . 3 . 1 . . . 4 . . . 4 3 . 1 . . 4 . 3 5 4 Fabricators 46 | . . . . . . . . . 6 . 5 . . . . 2 . . . . . . . 3 . 7 . 1 . . . 7 4 . 7 . . 4 . . . . Report 4 | . . . . . . . . . . . . . . . . . . . . . . . . . . 1 . . . . . 1 1 . 1 . . . . . . . Prioritize 7 | . . . . . . . . . . . 1 . . . . . . . . . . . . . . 1 . . . . . 2 1 . 1 . . 1 . . . . Liberate 4 | . . . . . . . . . . . . . . . . 1 . . . . . . . . . 1 . . . . . . . . 1 . . 1 . . . . Fabnet 21 | . . . . . . . . . 3 . 3 . . . . 1 . . . . . . . 2 . 3 . 1 . . . 3 1 . 3 . . 1 . . . . Haulers 5 | . . . . . . . . . . . 1 . . . . . . . . . . . . . . 1 . . . . . 1 1 . 1 . . . . . . . Download 2 | . . . . . . . . . 2 . . . . . . . . . . . . . . . . . . . . . . . . . . . . . . . . . Recompile 3 | . . . . . . . . . 1 . . . . . . . . . . . . . . 1 . . . . . . . . . . . . . 1 . . . . Repair Stations 7 | . . . . . . . . . 3 . . . . . . . . . . . . . . . . 1 . 1 . 1 . . . . . . . . . . . 1 Patch 7 | . . . . . . . . . 3 . . . . . . . . . . . . . . . . 1 . 1 . 1 . . . . . . . . . . . 1 Recycling Units 4 | . 2 . 2 . . . . . . . . . . . . . . . . . . . . . . . . . . . . . . . . . . . . . . . Tunnel 4 | . 2 . 2 . . . . . . . . . . . . . . . . . . . . . . . . . . . . . . . . . . . . . . . Scanalyzers 4 | . . . . . . . . . . . . . . . . . . 1 . . . . . 1 . . . . . 2 . . . . . . . . . . . . Extract 4 | . . . . . . . . . . . . . . . . . . 1 . . . . . 1 . . . . . 2 . . . . . . . . . . . . Garrison Access 22 | . . . . . . . 1 . . . . . . . . 1 . . . . . . . . . 4 . 5 . . . . . . 2 . . 3 . . 5 1 Broadcast 4 | . . . . . . . . . . . . . . . . . . . . . . . . . . 1 . 1 . . . . . . . . . 1 . . 1 . Decoy 1 | . . . . . . . . . . . . . . . . . . . . . . . . . . . . . . . . . . . . . . . . . 1 . Redirect 3 | . . . . . . . . . . . . . . . . . . . . . . . . . . . . 1 . . . . . . . . . 1 . . 1 . Reprogram 5 | . . . . . . . 1 . . . . . . . . 1 . . . . . . . . . 1 . 1 . . . . . . 1 . . . . . . . Intercept 6 | . . . . . . . . . . . . . . . . . . . . . . . . . . 1 . 1 . . . . . . 1 . . 1 . . 1 1 Watchers 3 | . . . . . . . . . . . . . . . . . . . . . . . . . . 1 . 1 . . . . . . . . . . . . 1 . Data Cores Recovered 4 | . . . 1 . . . . . 1 . . . . . . . . . 1 . . . . . . . . . . . . . . . 1 . . . . . . . Used 1 | . . . . . . . . . . . . . . . . . . . 1 . . . . . . . . . . . . . . . . . . . . . . . Hacking Detections 143 | . 7 1 8 . . . 8 4 21 . 21 . . . . 5 1 2 7 2 . 2 1 3 . 4 1 3 1 5 . 3 3 . 6 1 1 5 1 3 7 6 Full Trace Events 13 | . . . 2 . . . 3 . 3 . 2 . . . . 2 . . . . . . . . . . . . . . . . . . . . . . . . . 1 Feedback Events 4 | . . . . . . . 1 . 1 . 2 . . . . . . . . . . . . . . . . . . . . . . . . . . . . . . . Corruption 3 | . . . . . . . 1 . 1 . 1 . . . . . . . . . . . . . . . . . . . . . . . . . . . . . . . Hackware Fried 1 | . . . . . . . . . . . 1 . . . . . . . . . . . . . . . . . . . . . . . . . . . . . . . Feedback Blocked . | . . . . . . . . . . . . . . . . . . . . . . . . . . . . . . . . . . . . . . . . . . . Robot Schematics Acquired 6 | . . . . . . . . . . . . . . 4 . . . . . . . . . 1 . . . . . . . . . . . . . . . . . 1 Robots Built 3 | . . . . . . . . . . . . . . . . . . . . . . . . . . . . . . . . . 3 . . . . . . . . . Authchips . | . . . . . . . . . . . . . . . . . . . . . . . . . . . . . . . . . . . . . . . . . . . Time 177 | . . . . . . . . . . . . . . . . . . . . . . . . . . 84 . . . . . . 93 . . . . . . . . . Total Robot Build Rating 21 | . . . . . . . . . . . . . . . . . . . . . . . . . . . . . . . . . 21 . . . . . . . . . Part Schematics Acquired 67 | . . . 1 . . . 2 . 3 . 6 . . 13 . 1 . 2 1 . . . . 7 . . . 3 . 17 . 2 1 . . . 1 2 . 3 . 2 Parts Built 14 | . . . . . . . . . . . 2 . . . . . . . . . . . . . . 1 . . . . . 6 2 . 1 . . 2 . . . . Authchips 6 | . . . . . . . . . . . 1 . . . . . . . . . . . . . . 1 . . . . . 3 . . . . . 1 . . . . Time 347 | . . . . . . . . . . . 42 . . . . . . . . . . . . . . 50 . . . . . 113 39 . 74 . . 29 . . . . Total Part Build Rating 90 | . . . . . . . . . . . 8 . . . . . . . . . . . . . . 5 . . . . . 40 14 . 9 . . 14 . . . . Part Studies Acquired 23 | . . . . . . . 4 . 5 . 1 . . . . . . 2 . . . . . 1 . . . 1 . 1 . 2 . . 4 . 2 . . . . . Parts Repaired 5 | . 2 . . . . . . . . . . . . . . 1 . . . . . . . . . . . 1 . . . . . . . . . . . . 1 . Time 217 | . 64 . . . . . . . . . . . . . . 61 . . . . . . . . . . . 70 . . . . . . . . . . . . 22 . Parts Recycled . | . . . . . . . . . . . . . . . . . . . . . . . . . . . . . . . . . . . . . . . . . . . Recycled Matter . | . . . . . . . . . . . . . . . . . . . . . . . . . . . . . . . . . . . . . . . . . . . Retrieved Matter . | . . . . . . . . . . . . . . . . . . . . . . . . . . . . . . . . . . . . . . . . . . . Retrieved Components . | . . . . . . . . . . . . . . . . . . . . . . . . . . . . . . . . . . . . . . . . . . . Parts Scanalyzed 11 | . . . . . . . 2 . . . 2 . . . . 1 . 1 . . . . . 3 . . . 1 . . . . . . . . 1 . . . . . Part Schematics Acquired 11 | . . . . . . . 2 . . . 2 . . . . 1 . 1 . . . . . 3 . . . 1 . . . . . . . . 1 . . . . . Parts Damaged 1 | . . . . . . . . . . . . . . . . 1 . . . . . . . . . . . . . . . . . . . . . . . . . . Bothacking | -11 -10 -10 -9 -9 -9 -8 -8 -8 -7 -7 -7 -7 -7 -7 -6 -6 -6 -6 -6 -6 -6 -6 -6 -5 -5 -5 -5 -5 -5 -4 -4 -4 -4 -4 -3 -3 -3 -3 -3 -2 -2 -2 ------------ Run | Yrd Mat Min Mat Min Exi Min Mat Gar Fac Was Fac Low Low Dat Pro Fac Gar Fac Ext Cet Arc Hub Gar Fac Was Fac Gar Fac Gar Fac Was Fac Arm Lab Res Gar Res Tes Gar Res Qua Sec Used RIF Installer 8 | . . . . . . . . 1 . . . . . . . . 1 . . . . . 1 . . . 2 . 1 . . . . . . 1 . . 1 . . . Coupler Efficiency 1 | . . . . . . . . . . . . . . . . . . . . . . . 1 . . . . . . . . . . . . . . . . . . . Hotswap 1 | . . . . . . . . . . . . . . . . . 1 . . . . . . . . . . . . . . . . . . . . . . . . . Code Merge 1 | . . . . . . . . . . . . . . . . . . . . . . . . . . . 1 . . . . . . . . . . . . . . . Signal Jammer 1 | . . . . . . . . . . . . . . . . . . . . . . . . . . . . . . . . . . . . . . . 1 . . . Zone Cloak 1 | . . . . . . . . . . . . . . . . . . . . . . . . . . . . . . . . . . . . 1 . . . . . . Alert ID Control 1 | . . . . . . . . . . . . . . . . . . . . . . . . . . . . . 1 . . . . . . . . . . . . . Program Shield 1 | . . . . . . . . . . . . . . . . . . . . . . . . . . . 1 . . . . . . . . . . . . . . . Robots Hacked 70 | . . . . 1 . . . . 1 . . . . 1 1 . 8 1 2 . 2 2 4 . . . 2 2 . 7 . 6 15 . 4 2 . . . . 3 6 Non-combat 4 | . . . . . . . . . 1 . . . . . . . . . . . 1 . . . . . . . . 1 . . . . . . . . . . 1 . Combat 66 | . . . . 1 . . . . . . . . . 1 1 . 8 1 2 . 1 2 4 . . . 2 2 . 6 . 6 15 . 4 2 . . . . 2 6 Robot Hacks Applied 24 | . . . . 1 . . . . 1 . . . . 1 . . 7 1 1 . 1 . 2 . . . . . . 2 . . 4 . . . . . . . 2 1 parse_system 6 | . . . . 1 . . . . . . . . . 1 . . . . 1 . . . 1 . . . . . . 1 . . . . . . . . . . 1 . find_chute 2 | . . . . . . . . . 1 . . . . . . . . . . . . . . . . . . . . 1 . . . . . . . . . . . . check_alert 1 | . . . . . . . . . . . . . . . . . . . . . 1 . . . . . . . . . . . . . . . . . . . . . disable_weapons 1 | . . . . . . . . . . . . . . . . . 1 . . . . . . . . . . . . . . . . . . . . . . . . . reboot_system 1 | . . . . . . . . . . . . . . . . . . . . . . . . . . . . . . . . . . . . . . . . . . 1 overwrite_iff 3 | . . . . . . . . . . . . . . . . . 3 . . . . . . . . . . . . . . . . . . . . . . . . . formatsys_high 10 | . . . . . . . . . . . . . . . . . 3 1 . . . . 1 . . . . . . . . . 4 . . . . . . . 1 . Relay Couplers Released 32 | . . . . . . . . 18 . . . . . . . . 9 . . . . . 5 . . . . . . . . . . . . . . . . . . . Machine Destruction 32 | . . . . . . . . 18 . . . . . . . . 9 . . . . . 5 . . . . . . . . . . . . . . . . . . . Attached 8 | . . . . . . . . . . . . . . . . . 4 1 . . . . 2 . . . . . . . . . 1 . . . . . . . . . Fabnet Peak Effective % 15 | . . . . . . . . . . . . . . . 15 15 15 15 15 15 15 15 15 9 9 9 9 9 9 15 15 15 15 15 15 15 15 15 15 15 15 15 Autooverrided 48 | . . . . . . . . . . . . . . . 1 . 1 . 2 . 1 2 3 . . . 2 2 . 5 . 6 11 . 4 2 . . . . 1 5 Robots Rewired 26 | . . . . . . . . . . . . . . . . . . . 15 . . . . 1 . . . . . 2 . . 8 . . . . . . . . . Allies Hacked 1 | . . . . . . . . . . . 1 . . . . . . . . . . . . . . . . . . . . . . . . . . . . . . . Hacks Repelled . | . . . . . . . . . . . . . . . . . . . . . . . . . . . . . . . . . . . . . . . . . . . Allies | -11 -10 -10 -9 -9 -9 -8 -8 -8 -7 -7 -7 -7 -7 -7 -6 -6 -6 -6 -6 -6 -6 -6 -6 -5 -5 -5 -5 -5 -5 -4 -4 -4 -4 -4 -3 -3 -3 -3 -3 -2 -2 -2 -------- Run | Yrd Mat Min Mat Min Exi Min Mat Gar Fac Was Fac Low Low Dat Pro Fac Gar Fac Ext Cet Arc Hub Gar Fac Was Fac Gar Fac Gar Fac Was Fac Arm Lab Res Gar Res Tes Gar Res Qua Sec Total Allies 170 | . . . . 3 . . . 1 2 19 3 . . . 1 6 7 2 24 5 1 2 4 2 . 3 2 4 2 7 20 7 26 . 4 4 1 . . . 3 5 Largest Group 22 | . . . . 3 . . . 1 1 19 11 . . . . 4 6 1 15 12 11 9 2 2 . 3 5 2 2 4 21 22 9 4 3 2 1 1 . . 2 3 Highest-Rated Group 814 | . . . . 40 . . . 31 26 465 301 . . . . 116 140 84 482 814 775 582 66 39 . 87 182 49 157 285 688 727 474 285 190 142 45 45 . . 426 413 Highest-Rated Ally 344 | . . . . 16 . . . 31 26 35 31 . . . . 29 37 84 159 159 159 96 37 29 . 29 54 49 95 95 50 64 142 84 84 82 45 45 . . 344 344 Total Orders 28 | . . . . . . . . . . . . . . . . . . . 2 6 3 . 1 . . . . . . . . . 14 . . . . . . . 2 . STAY 16 | . . . . . . . . . . . . . . . . . . . 1 3 . . 1 . . . . . . . . . 10 . . . . . . . 1 . ROAM 1 | . . . . . . . . . . . . . . . . . . . . . 1 . . . . . . . . . . . . . . . . . . . . . FOLLOW 11 | . . . . . . . . . . . . . . . . . . . 1 3 2 . . . . . . . . . . . 4 . . . . . . . 1 . Ally Attacks 1162 | . . . . 30 . . . 4 . 167 84 . . . . 30 53 . 163 70 31 53 10 2 . 4 12 4 . 13 30 151 112 27 11 5 . . . . 56 40 Total Damage 29466 | . . . . 172 . . . 60 . 3257 1113 . . . . 356 785 . 3435 1873 1268 1980 230 19 . . 213 64 . 278 659 3390 3935 753 338 151 . . . . 2688 2449 Kills 138 | . . . . 3 . . . 1 . 6 13 . . . . 3 9 . 20 8 4 6 1 . . . . 2 . . 1 18 17 1 2 1 . . . . 10 12 Allies Corrupted 4 | . . . . . . . . . . . . . . . . . . . . . . 3 . . . . . . . . . . . 1 . . . . . . . . Allies Melted 3 | . . . . . . . . . . . . . . . . . . . . . . . . . . . . . . . . . 2 . . 1 . . . . . . Intel | -11 -10 -10 -9 -9 -9 -8 -8 -8 -7 -7 -7 -7 -7 -7 -6 -6 -6 -6 -6 -6 -6 -6 -6 -5 -5 -5 -5 -5 -5 -4 -4 -4 -4 -4 -3 -3 -3 -3 -3 -2 -2 -2 ------- Run | Yrd Mat Min Mat Min Exi Min Mat Gar Fac Was Fac Low Low Dat Pro Fac Gar Fac Ext Cet Arc Hub Gar Fac Was Fac Gar Fac Gar Fac Was Fac Arm Lab Res Gar Res Tes Gar Res Qua Sec Active Infowar (turns) 9282 | 20 966 396 1173 370 . 131 450 . 659 153 1025 72 134 33 156 438 2 460 1115 6 . . . . . . . . . 84 . . . . 15 61 48 148 38 90 806 233 Optics 1439 | . . . . . . . . . . . . . . . . . . . . . . . . . . . . . . . . . . . 15 61 48 148 38 90 806 233 Sensors 4750 | . . . . . . . . . 659 153 1025 72 134 33 156 438 2 460 697 . . . . . . . . . . 84 . . . . . . . . . . 763 74 Zeronet 424 | . . . . . . . . . . . . . . . . . . . 418 6 . . . . . . . . . . . . . . . . . . . . . . Terrain 580 | 20 560 . . . . . . . . . . . . . . . . . . . . . . . . . . . . . . . . . . . . . . . . . Seismic 2926 | . 406 396 1173 370 . 131 450 . . . . . . . . . . . . . . . . . . . . . . . . . . . . . . . . . . . Cloaking 992 | . . . . . . . . . . . . . . . . . . . . . . . . . . . . . . . . . . . . . . . . 86 805 101 ECM 22 | . . . . . . . . . 22 . . . . . . . . . . . . . . . . . . . . . . . . . . . . . . . . . Robot Analysis Total 154 | . 2 . 1 . . . 1 . . . . . . 150 . . . . . . . . . . . . . . . . . . . . . . . . . . . . Derelict Logs Recovered 5 | . . 2 . 2 . . . . . . . . 1 . . . . . . . . . . . . . . . . . . . . . . . . . . . . . Drone Launches . | . . . . . . . . . . . . . . . . . . . . . . . . . . . . . . . . . . . . . . . . . . . Drone Recoveries . | . . . . . . . . . . . . . . . . . . . . . . . . . . . . . . . . . . . . . . . . . . . Exploration | -11 -10 -10 -9 -9 -9 -8 -8 -8 -7 -7 -7 -7 -7 -7 -6 -6 -6 -6 -6 -6 -6 -6 -6 -5 -5 -5 -5 -5 -5 -4 -4 -4 -4 -4 -3 -3 -3 -3 -3 -2 -2 -2 ------------- Run | Yrd Mat Min Mat Min Exi Min Mat Gar Fac Was Fac Low Low Dat Pro Fac Gar Fac Ext Cet Arc Hub Gar Fac Was Fac Gar Fac Gar Fac Was Fac Arm Lab Res Gar Res Tes Gar Res Qua Sec Turns Passed 14889 | 66 1037 396 1173 407 44 141 651 773 962 153 1110 72 134 91 187 438 219 504 1184 342 301 157 345 172 13 107 94 367 50 230 185 210 774 214 162 61 48 148 38 90 806 233 Spaces Moved 23354 | 50 648 289 645 229 28 316 960 1179 2180 282 2448 265 459 133 449 345 329 1258 888 385 185 239 486 567 73 373 212 712 124 681 236 513 2107 319 446 187 128 398 97 301 829 376 Core 61 | 23 . . . . . . . . . . . . . . . . . . . . . . . . . . . . . . . . . . . . . . . . . 38 Treads 951 | . . 49 645 229 28 . . . . . . . . . . . . . . . . . . . . . . . . . . . . . . . . . . . . . Legs . | . . . . . . . . . . . . . . . . . . . . . . . . . . . . . . . . . . . . . . . . . . . Wheels 915 | 27 648 240 . . . . . . . . . . . . . . . . . . . . . . . . . . . . . . . . . . . . . . . . Hover . | . . . . . . . . . . . . . . . . . . . . . . . . . . . . . . . . . . . . . . . . . . . Flight 21427 | . . . . . . 316 960 1179 2180 282 2448 265 459 133 449 345 329 1258 888 385 185 239 486 567 73 373 212 712 124 681 236 513 2107 319 446 187 128 398 97 301 829 338 Fastest Speed 7 | 50 100 115 152 152 160 26 26 27 24 28 26 26 26 26 25 25 22 22 22 22 22 22 22 19 16 19 12 17 17 14 17 12 8 15 15 11 25 15 14 7 14 19 Average Speed 32 | 77 112 121 153 154 160 26 26 27 26 28 27 26 26 26 25 25 24 25 24 22 22 22 22 20 17 19 18 18 17 17 17 15 14 31 22 17 25 23 20 23 23 27 Slowest Speed 160 | 100 115 152 156 160 160 26 27 34 32 28 29 26 26 26 26 25 26 103 97 22 22 22 25 23 19 19 22 32 17 23 17 85 22 105 25 22 25 25 24 24 24 104 Overloaded Moves 112 | . . . . . . . . . . . . . . . . . . . . . . . . . 47 . 9 . . . . . 12 . . 14 . . . 7 . 23 Propulsion Burnouts . | . . . . . . . . . . . . . . . . . . . . . . . . . . . . . . . . . . . . . . . . . . . Robots Hopped 136 | . . . . . . 1 5 10 5 . 10 1 1 . . . 6 . 14 . 1 1 . 5 . . . 8 . 14 . 4 3 1 . 8 . 7 . 4 13 14 Potential Cave-ins 3 | . . . . . . . . . . . . . . . . . . . . . . 3 . . . . . . . . . . . . . . . . . . . . Cave-ins Triggered . | . . . . . . . . . . . . . . . . . . . . . . . . . . . . . . . . . . . . . . . . . . . Teleports 1 | . . . . . . . . . . . . . . . . . . . . . . . . . . . . . . . . . . . . . . . . . . 1 Exploration Rate (%) 50 | 3 77 77 63 53 8 76 58 91 60 85 58 71 65 79 75 11 43 12 73 79 96 43 59 13 66 9 41 21 27 20 94 13 81 98 16 42 5 68 27 14 78 29 Regions Visited 42 Branch Regions 17 Pre-discovered Areas 42 | . 2 2 3 . . . 2 . 4 . 1 . . 24 . . . . 3 . . . . . . . . . . . . . . . . . . . . . 1 . Known Exits Taken 24 | . 1 1 1 1 . 1 1 . . . 1 1 1 1 1 1 . 1 1 1 . 1 . . . 1 . 1 . . . 1 . . 1 . 1 1 . 1 1 . Unknown Exits Taken 5 | 1 . . . . 1 . . . . . . . . . . . . . . . 1 . . . . . . . . . . . 1 1 . . . . . . . . Scrap Searched 15 | . . 1 . 2 . 1 . . . . . 3 5 . 3 . . . . . . . . . . . . . . . . . . . . . . . . . . . Spaces Dug 286 | . 4 . 2 . . . 24 36 21 . 22 . 3 . 6 4 4 4 5 . . 15 2 9 . . 13 21 1 10 . 12 16 2 6 1 1 4 1 6 10 21 Terrain Destroyed 532 | . 19 8 28 . . . 24 90 49 . 22 . 3 . 17 4 4 4 5 . . 15 19 9 . 17 13 21 1 26 . 12 42 2 6 1 1 4 1 6 10 49 Melee 243 | . . . . . . . 14 36 17 . 22 . 3 . 6 4 4 4 5 . . 15 2 9 . . 1 21 1 10 . 12 16 2 6 1 1 4 1 6 10 10 Projectile 6 | . 4 . 2 . . . . . . . . . . . . . . . . . . . . . . . . . . . . . . . . . . . . . . . AOE 282 | . 15 8 26 . . . 10 54 32 . . . . . 11 . . . . . . . 17 . . 17 12 . . 16 . . 25 . . . . . . . . 39 Terrain Rammed . | . . . . . . . . . . . . . . . . . . . . . . . . . . . . . . . . . . . . . . . . . . . Walls Destroyed . | . . . . . . . . . . . . . . . . . . . . . . . . . . . . . . . . . . . . . . . . . . . Machines Disabled . | . . . . . . . . . . . . . . . . . . . . . . . . . . . . . . . . . . . . . . . . . . . Actions | -11 -10 -10 -9 -9 -9 -8 -8 -8 -7 -7 -7 -7 -7 -7 -6 -6 -6 -6 -6 -6 -6 -6 -6 -5 -5 -5 -5 -5 -5 -4 -4 -4 -4 -4 -3 -3 -3 -3 -3 -2 -2 -2 --------- Run | Yrd Mat Min Mat Min Exi Min Mat Gar Fac Was Fac Low Low Dat Pro Fac Gar Fac Ext Cet Arc Hub Gar Fac Was Fac Gar Fac Gar Fac Was Fac Arm Lab Res Gar Res Tes Gar Res Qua Sec Total 29183 | 67 853 317 737 256 27 377 1302 1418 2453 355 2799 266 465 173 500 686 441 1394 1798 637 438 292 685 601 72 399 255 886 145 744 380 591 2449 391 496 200 138 438 113 306 1402 441 Wait 4072 | . 124 7 10 7 . 47 284 83 110 74 209 3 4 20 33 328 4 92 783 250 236 20 141 14 . 15 30 136 16 3 143 33 158 10 27 18 8 26 1 . 558 7 Move 23072 | 49 647 288 644 228 27 313 949 1160 2170 281 2428 262 456 132 448 344 320 1257 861 384 182 237 485 559 72 372 211 696 123 655 235 504 2100 316 445 173 127 384 96 293 807 352 Hop 109 | . . . . . . 1 5 8 5 . 9 1 1 . . . 2 . 12 . 1 1 . 3 . . . 8 . 12 . 4 3 1 . 5 . 6 . 3 8 10 Pick Up 116 | 7 11 4 8 1 . . 5 1 7 . 12 . . . 1 1 6 1 5 . 3 1 5 1 . . 1 4 . 3 . 2 6 7 3 . . 3 . 1 3 3 Fast Attach 121 | 6 5 1 5 . . . 4 2 18 . 8 . . . . 1 7 4 5 . 2 . 3 3 . . 1 4 . 11 1 4 6 6 2 . . 1 . . 3 8 Attach 70 | 1 2 2 2 . . 6 3 3 4 . 6 . . 1 . 3 1 1 4 . 2 . 1 2 . 1 1 2 . 2 . 3 1 2 2 . . 2 . 2 . 8 Detach 22 | . 2 . . . . . . 1 2 . 2 . . . . 1 1 1 2 . . . . 1 . . . . . 3 . 1 2 3 . . . . . . . . Swap 190 | . 10 1 12 5 . 1 8 12 17 . 17 . . 2 4 1 1 5 7 . 2 2 10 3 . 6 6 1 2 5 . 3 25 7 4 . . 4 . 1 1 5 Drop 182 | . 5 4 9 1 . 9 11 2 21 . 16 . . 1 . 1 11 4 7 . 4 2 7 3 . . . 2 . 11 1 5 12 13 5 . . 6 . . 3 6 Fire 283 | 4 47 9 47 7 . . 1 45 11 . . . . . 1 . . . 1 . . . 6 . . 4 1 . 1 3 . 4 81 . . . . . . . 2 8 Melee 650 | . . . . 6 . . 32 83 55 . 55 . 4 11 13 6 27 19 50 3 6 15 22 12 . 1 4 33 3 24 . 28 51 17 8 4 3 6 1 6 16 26 Ram . | . . . . . . . . . . . . . . . . . . . . . . . . . . . . . . . . . . . . . . . . . . . Kick . | . . . . . . . . . . . . . . . . . . . . . . . . . . . . . . . . . . . . . . . . . . . Crush 2 | . . 1 . 1 . . . . . . . . . . . . . . . . . . . . . . . . . . . . . . . . . . . . . . Escape Stasis 82 | . . . . . . . . 18 . . . . . . . . 29 . . . . . . . . . . . . 12 . . . . . . . . 15 . . 8 Rewire 9 | . . . . . . . . . . . . . . . . . 2 1 . . . . 1 . . . . . . . . . 4 . . . . . . . 1 . Trap 170 | . . . . . . . . . 33 . 36 . . 6 . . 30 . 61 . . . 4 . . . . . . . . . . . . . . . . . . . Miscellaneous 33 | . . . . . . . . . . . 1 . . . . . . 9 . . . 14 . . . . . . . . . . . 9 . . . . . . . . Route ------- -11/Scrapyard -10/Materials (discovered 6 exits: *Mat x3 / *Min x2 / Sub) -10/Mines (discovered 2 exits: *Mat x2) -9/Materials (discovered 5 exits: *Mat x3 / *Min x2) -9/Mines (discovered 3 exits: Mat x2 / *Exi) -9/Exiles -8/Mines -8/Materials (discovered 4 exits: *Fac x3 / Gar) -8/Garrison (discovered 3 exits: *Fac x3) -7/Factory (discovered 3 exits: *Fac / *Sto x2) -7/Waste -7/Factory (discovered 7 exits: *Fac x4 / *Sto / *Low x2) -7/Lower Caves -7/Lower Caves (discovered 2 exits: Fac / *Dat) -7/Data Miner -6/Proximity Caves -6/Factory (discovered 3 exits: Low / Ext / Gar) -6/Garrison -6/Factory -6/Extension (discovered 3 exits: *Fac x2 / *Cet) -6/Cetus (discovered 3 exits: *Fac x2 / *Arc) -6/Archives (discovered 3 exits: *Fac / *Hub x2) -6/Hub_04(d) (discovered 3 exits: *Fac x2 / Gar) -6/Garrison (discovered 3 exits: *Fac x3) -5/Factory (discovered 3 exits: Fac x2 / Upp) -5/Waste -5/Factory -5/Garrison (discovered 3 exits: *Fac x3) -5/Factory (discovered 5 exits: *Fac / *Upp x2 / Gar / Gar) -5/Garrison (discovered 3 exits: *Fac x3) -4/Factory (discovered 2 exits: *Upp / *Arm) -4/Waste -4/Factory (discovered 3 exits: Upp x2 / *Arm) -4/Armory (discovered 3 exits: *Res x2 / *Lab) -4/Lab -3/Research (discovered 3 exits: Tes x2 / Gar) -3/Garrison (discovered 4 exits: *Res x4) -3/Research (discovered 2 exits: *Tes x2) -3/Testing (discovered 2 exits: *Res / Gar) -3/Garrison (discovered 3 exits: *Res x3) -2/Research (discovered 2 exits: *Qua x2) -2/Quarantine (discovered 3 exits: Acc / *Sec / [*Frg]) -2/Section 7 (discovered 2 exits: Acc / Gar) History --------- Turn | Location | Event 6 | -11/Scrapyard | Discovered new exit (range 15) 67 | -11/Scrapyard | Entered Materials 238 | -10/Materials | Discovered new exit (range 12) 301 | -10/Materials | Build established: Mutant 400 | -10/Materials | Repaired Hvy. EM Pulse Gun 433 | -10/Materials | Repaired Hvy. EM Pulse Gun 473 | -10/Materials | Discovered new exit (range 16) 580 | -10/Materials | Discovered new exit (range 16) 671 | -10/Materials | Identified exit to Mines 671 | -10/Materials | Identified exit to Subcaves 671 | -10/Materials | Identified exit to Materials 723 | -10/Materials | Learned location of 1 exit from Storage 765 | -10/Materials | Learned 2 Mines zone layouts 795 | -10/Materials | Learned location of 2 exits from Mines 813 | -10/Materials | Learned 4 Subcaves zone layouts 826 | -10/Materials | Loaded intel: 5 trap records 840 | -10/Materials | Learned 4 Materials zone layouts 864 | -10/Materials | Learned Storage emergency access door positions 896 | -10/Materials | Learned location of 2 exits from Materials 1104 | -10/Materials | Entered Mines 1231 | -10/Mines | Learned location of Storage (-7) 1282 | -10/Mines | Met a Derelict shopkeep closing up shop 1500 | -10/Mines | Entered Materials 1500 | -9/Materials | Evolved 2 slots: Propulsion x2 1501 | -9/Materials | Identified exit to Materials 1502 | -9/Materials | Identified exit to Mines 1795 | -9/Materials | Discovered exit to Materials (range 15) 1999 | -9/Materials | Destroyed 8 combat bots 2127 | -9/Materials | Learned location of 3 exits from Materials 2308 | -9/Materials | Learned 2 Storage zone layouts 2376 | -9/Materials | Learned location of 2 exits from Materials 2416 | -9/Materials | Learned location of Zion (-6) 2464 | -9/Materials | Learned Storage stockpile data 2522 | -9/Materials | Learned 8 Materials zone layouts 2673 | -9/Materials | Entered Mines 2726 | -9/Mines | Identified exit to Exiles 2764 | -9/Mines | Assisted by bots powering up and referring to "LRC-V3" 2961 | -9/Mines | Assembled infested the area 3036 | -9/Mines | Met 8R-AWN 3057 | -9/Mines | Attacked by 8R-AWN 3080 | -9/Mines | Entered Exiles 3080 | -9/Exiles | Attacked by the Exiles 3103 | -9/Exiles | Discovered new exit (range 14) 3124 | -9/Exiles | Entered Mines 3265 | -8/Mines | Discovered exit to Materials (range 3) 3265 | -8/Mines | Entered Materials 3265 | -8/Materials | Evolved 2 slots: Utility x2 3266 | -8/Materials | Identified exit to Factory 3435 | -8/Materials | Build established: Sprinter 3743 | -8/Materials | Learned location of 1 exit from Recycling 3776 | -8/Materials | Learned location of 1 exit from Storage 3782 | -8/Materials | Identified exit to Garrison 3807 | -8/Materials | Learned Storage emergency access door positions 3810 | -8/Materials | Learned location of 2 exits from Lower Caves 3813 | -8/Materials | Learned Factory security intel 3916 | -8/Materials | Entered Garrison 3952 | -8/Garrison | Garrison Relay disabled 3973 | -8/Garrison | Rescued a captive Derelict 3976 | -8/Garrison | Triggered checkpoint 4020 | -8/Garrison | Triggered checkpoint 4020 | -8/Garrison | Triggered checkpoint 4055 | -8/Garrison | Discovered exit to Factory (range 13) 4074 | -8/Garrison | Destroyed 10 combat bots 4104 | -8/Garrison | Triggered checkpoint 4130 | -8/Garrison | Garrison Relay disabled 4140 | -8/Garrison | Discovered exit to Factory (range 10) 4172 | -8/Garrison | Triggered checkpoint 4316 | -8/Garrison | Triggered checkpoint 4468 | -8/Garrison | Triggered checkpoint 4473 | -8/Garrison | Garrison Relay disabled 4500 | -8/Garrison | Discovered exit to Factory (range 10) 4600 | -8/Garrison | Triggered checkpoint 4614 | -8/Garrison | Discovered exit to Factory (range 92) 4614 | -8/Garrison | Discovered exit to Factory (range 7) 4614 | -8/Garrison | Discovered exit to Factory (range 50) 4617 | -8/Garrison | Garrison Relay disabled 4637 | -8/Garrison | Lost 4 parts (2n1u1w) 4674 | -8/Garrison | Installed Relay Interface Framework 4689 | -8/Garrison | Entered Factory 4689 | -7/Factory | Evolved 2 slots: Propulsion x1, Utility x1 4690 | -7/Factory | Identified exit to Storage 4840 | -7/Factory | Lost 3 parts (2n1u) 5026 | -7/Factory | Build established: Scavenger-Sprinter 5421 | -7/Factory | Learned Extension trap positions 5456 | -7/Factory | Learned location of Upper Caves (-5) 5480 | -7/Factory | Learned location of Lower Caves (-6) 5489 | -7/Factory | First assault squad dispatched 5498 | -7/Factory | Learned location of Proximity Caves (-5) 5500 | -7/Factory | Learned 4 Extension zone layouts 5512 | -7/Factory | Learned location of 1 exit from Lower Caves 5518 | -7/Factory | Discovered new exit (range 7) 5520 | -7/Factory | Identified exit to Factory 5651 | -7/Factory | Manually triggered Chute Trap 5651 | -7/Factory | Sucked down chute 5651 | -7/Factory | Entered Waste 5659 | -7/Waste | Spotted C-40 Crusher 5664 | -7/Waste | Warlord forces began an assault 5673 | -7/Waste | Spotted C-40 Crusher 5674 | -7/Waste | Spotted C-40 Crusher 5674 | -7/Waste | Spotted C-40 Crusher 5676 | -7/Waste | Spotted C-40 Crusher 5677 | -7/Waste | Spotted C-40 Crusher 5680 | -7/Waste | Allies destroyed C-40 Crusher 5694 | -7/Waste | Allies destroyed C-40 Crusher 5703 | -7/Waste | Allies destroyed C-40 Crusher 5707 | -7/Waste | Allies destroyed C-40 Crusher 5716 | -7/Waste | Allies destroyed C-40 Crusher 5718 | -7/Waste | Allies destroyed C-40 Crusher 5741 | -7/Waste | Discovered new exit (range 13) 5747 | -7/Waste | Lost 8 allies 5761 | -7/Waste | Identified exit to Factory 5804 | -7/Waste | Entered Factory 5804 | -7/Factory | Accompanied by 11 allies 5864 | -7/Factory | Discovered exit to Factory (range 16) 5901 | -7/Factory | Build established: Sprinter 6155 | -7/Factory | Loaded intel: 4 scanalyzer locations 6183 | -7/Factory | Identified exit to Lower Caves 6230 | -7/Factory | Learned location of 2 exits from Lower Caves 6273 | -7/Factory | Hacking Suite fried by hacking feedback 6294 | -7/Factory | Learned location of 1 exit from Cetus 6348 | -7/Factory | Learned location of 1 exit from Cetus 6379 | -7/Factory | Found Powered Armor 6390 | -7/Factory | Learned Extension stockpile data 6476 | -7/Factory | Learned 4 Proximity Caves zone layouts 6563 | -7/Factory | Learned location of 1 exit from Extension 6622 | -7/Factory | Loaded intel: 113 trap records 6623 | -7/Factory | Build established: Hacker-Sprinter 6711 | -7/Factory | Fabricated Imp. Trap Extractor (x2) 6914 | -7/Factory | Entered Lower Caves 6915 | -7/Lower Caves | Identified exit to Lower Caves 6986 | -7/Lower Caves | Entered another Lower Caves area 6987 | -7/Lower Caves | Identified exit to Data Miner 6996 | -7/Lower Caves | Build established: Trapper-Sprinter 7026 | -7/Lower Caves | Learned 4 Factory zone layouts 7074 | -7/Lower Caves | Spotted B-75 Beast 7120 | -7/Lower Caves | Entered Data Miner 7120 | -7/Data Miner | Discovered new exit (range 6) 7122 | -7/Data Miner | Identified exit to Proximity Caves 7125 | -7/Data Miner | Met Data Miner 7130 | -7/Data Miner | Learned location of Section 7 (-2) 7130 | -7/Data Miner | Acquired the access code to Warlord's prototype stash 7135 | -7/Data Miner | Received God Mode back door access code from Data Miner 7145 | -7/Data Miner | Interfaced with the Data Conduit 7211 | -7/Data Miner | Entered Proximity Caves 7379 | -6/Proximity Caves | Spotted B-75 Beast 7383 | -6/Proximity Caves | Discovered exit to Factory (range 7) 7398 | -6/Proximity Caves | Entered Factory 7398 | -6/Factory | Evolved 2 slots: Power x1, Propulsion x1 7399 | -6/Factory | Identified exit to Lower Caves 7399 | -6/Factory | Identified exit to Extension 7400 | -6/Factory | Loaded intel: 308 machine locations 7547 | -6/Factory | Build established: Scientist-Sprinter 7790 | -6/Factory | Repaired Broken Powered Armor 7806 | -6/Factory | Identified exit to Garrison 7836 | -6/Factory | Entered Garrison 7836 | -6/Garrison | Accompanied by 4 allies 7837 | -6/Garrison | Loaded intel: 36 machine locations 7846 | -6/Garrison | Expanded RIF knowledge: Hotswap 7866 | -6/Garrison | Garrison Relay disabled 7874 | -6/Garrison | Triggered checkpoint 7917 | -6/Garrison | Lost 3 allies 7936 | -6/Garrison | Triggered checkpoint 7948 | -6/Garrison | Spotted B-75 Beast 7969 | -6/Garrison | Garrison Relay disabled 8019 | -6/Garrison | Spotted B-75 Beast 8020 | -6/Garrison | Found Relay Coupler [Proto] 8021 | -6/Garrison | Found Relay Coupler [Proto] 8023 | -6/Garrison | Found Relay Coupler [Proto] 8053 | -6/Garrison | Discovered new exit (range 10) 8055 | -6/Garrison | Identified exit to Factory 8055 | -6/Garrison | Entered Factory 8056 | -6/Factory | Loaded intel: 258 machine locations 8074 | -6/Factory | Lost 4 allies 8130 | -6/Factory | Discovered exit to Extension (range 5) 8520 | -6/Factory | Intercept squad dispatched 8545 | -6/Factory | Spotted Tracker 8545 | -6/Factory | Assimilated Tracker with formatsys_high 8559 | -6/Factory | Entered Extension 8559 | -6/Extension | Accompanied by 1 ally 8560 | -6/Extension | Identified exit to Factory 8562 | -6/Extension | Loaded intel: 25 trap records 8564 | -6/Extension | Loaded intel: 31 machine locations 8655 | -6/Extension | Rescued a captive Derelict 8656 | -6/Extension | Rescued a captive Derelict 8698 | -6/Extension | Rescued a captive Derelict 8698 | -6/Extension | Rescued a captive Derelict 8852 | -6/Extension | Build established: Commander-Sprinter 8856 | -6/Extension | Unchained authorized (6S-H0T) 9162 | -6/Extension | Lost 3 allies 9276 | -6/Extension | Spotted B-75 Beast 9279 | -6/Extension | Allies destroyed 6S-H0T 9283 | -6/Extension | Found Prototype Ballistic Gun 9283 | -6/Extension | Identified 6S-H0T's Six Shooter 9325 | -6/Extension | Found Prototype Device 9325 | -6/Extension | Identified Zeronet Interface 9335 | -6/Extension | Spotted B-75 Beast 9349 | -6/Extension | Destroyed B-75 Beast 9399 | -6/Extension | Lost 10 allies 9502 | -6/Extension | Rescued A7 9522 | -6/Extension | Rescued a captive Derelict 9530 | -6/Extension | Rescued a captive Derelict 9583 | -6/Extension | Identified exit to Cetus 9622 | -6/Extension | Learned location of 3 exits from Factory 9652 | -6/Extension | Learned location of Proximity Caves (-4) 9687 | -6/Extension | Learned Extension trap positions 9730 | -6/Extension | Learned location of 1 exit from Hub_04(d) 9743 | -6/Extension | Entered Cetus 9743 | -6/Cetus | Accompanied by 7 allies (A7) 9744 | -6/Cetus | Identified exit to Archives 9745 | -6/Cetus | Loaded intel: 24 machine locations 9748 | -6/Cetus | Acquired a Cetus Manufacturing Module code from A7 9750 | -6/Cetus | Spotted Cetus Guard 9750 | -6/Cetus | Spotted Cetus Guard 9756 | -6/Cetus | Spotted Cetus Guard 9757 | -6/Cetus | Spotted Cetus Guard 9762 | -6/Cetus | Allies destroyed Cetus Guard 9766 | -6/Cetus | Allies destroyed Cetus Guard 9774 | -6/Cetus | Allies destroyed Cetus Guard 9776 | -6/Cetus | Allies destroyed Cetus Guard 9828 | -6/Cetus | Started Cetus Manufacturing Module 9853 | -6/Cetus | Manufactured an Enhanced Grunt 9856 | -6/Cetus | Escorted A7 to Cetus Mainframe 9878 | -6/Cetus | Manufactured an Enhanced Grunt 9903 | -6/Cetus | Manufactured an Enhanced Grunt 9928 | -6/Cetus | Manufactured an Enhanced Grunt 9953 | -6/Cetus | Manufactured an Enhanced Grunt 9972 | -6/Cetus | Spotted Cetus Guard 10015 | -6/Cetus | Spotted Cetus Guard 10015 | -6/Cetus | Spotted Cetus Guard 10022 | -6/Cetus | Allies destroyed Cetus Guard 10026 | -6/Cetus | Allies destroyed Cetus Guard 10030 | -6/Cetus | Discovered exit to Factory (range 15) 10032 | -6/Cetus | Met Revision 17 10085 | -6/Cetus | Entered Archives 10085 | -6/Archives | Accompanied by 11 allies (A7) 10086 | -6/Archives | Loaded intel: 8 machine locations 10090 | -6/Archives | Received a hacking code to weaken MAIN.C 10135 | -6/Archives | Discovered new exit (range 14) 10146 | -6/Archives | Unable to access archive contents 10147 | -6/Archives | Discovered new exit (range 13) 10209 | -6/Archives | Discovered exit to Factory (range 16) 10386 | -6/Archives | Entered Hub_04(d) 10386 | -6/Hub_04(d) | Accompanied by 9 allies 10388 | -6/Hub_04(d) | Loaded intel: 110 machine locations 10436 | -6/Hub_04(d) | Network Hub disabled 10458 | -6/Hub_04(d) | Network Hub disabled 10487 | -6/Hub_04(d) | Spotted Lightning 10496 | -6/Hub_04(d) | Network Hub disabled 10524 | -6/Hub_04(d) | Network Hub disabled 10537 | -6/Hub_04(d) | Discovered exit to Factory (range 4) 10543 | -6/Hub_04(d) | Identified exit to Garrison 10543 | -6/Hub_04(d) | Entered Garrison 10544 | -6/Garrison | Loaded intel: 37 machine locations 10567 | -6/Garrison | Triggered checkpoint 10569 | -6/Garrison | Discovered exit to Factory (range 63) 10569 | -6/Garrison | Discovered exit to Factory (range 50) 10569 | -6/Garrison | Discovered exit to Factory (range 70) 10645 | -6/Garrison | Local machine network offline 10675 | -6/Garrison | Garrison Relay disabled 10725 | -6/Garrison | Spotted B-75 Beast 10727 | -6/Garrison | Found Relay Coupler [Proto] 10728 | -6/Garrison | Found Relay Coupler [Proto] 10729 | -6/Garrison | Found Relay Coupler [Proto] 10730 | -6/Garrison | Found Relay Coupler [Proto] 10771 | -6/Garrison | Triggered checkpoint 10781 | -6/Garrison | Triggered checkpoint 10795 | -6/Garrison | Destroyed 8 combat bots 10798 | -6/Garrison | H-XX Assembler disabled 10860 | -6/Garrison | Spotted B-75 Beast 10860 | -6/Garrison | Spotted B-75 Beast 10867 | -6/Garrison | Triggered checkpoint 10867 | -6/Garrison | Triggered checkpoint 10883 | -6/Garrison | Expanded RIF knowledge: Coupler Efficiency 10888 | -6/Garrison | Entered Factory 10888 | -5/Factory | Evolved 2 slots: Propulsion x1, Utility x1 10889 | -5/Factory | Identified exit to Factory 10889 | -5/Factory | Identified exit to Upper Caves 10890 | -5/Factory | Loaded intel: 309 machine locations 10933 | -5/Factory | Central database locked down 10972 | -5/Factory | Build established: Bothacker-Sprinter 11060 | -5/Factory | Manually triggered Chute Trap 11060 | -5/Factory | Sucked down chute 11060 | -5/Factory | Entered Waste 11065 | -5/Waste | Spotted C-40 Crusher 11068 | -5/Waste | Spotted C-40 Crusher 11068 | -5/Waste | Spotted C-40 Crusher 11070 | -5/Waste | Spotted C-40 Crusher 11071 | -5/Waste | Spotted C-40 Crusher 11071 | -5/Waste | Discovered new exit (range 10) 11073 | -5/Waste | Entered Factory 11074 | -5/Factory | Loaded intel: 232 machine locations 11101 | -5/Factory | Unchained authorized (CL-0N3) 11144 | -5/Factory | Fabricated Cld. Cesium-ion Thruster (x1) 11173 | -5/Factory | Identified exit to Garrison 11180 | -5/Factory | Entered Garrison 11180 | -5/Garrison | Accompanied by 3 allies 11181 | -5/Garrison | Loaded intel: 27 machine locations 11187 | -5/Garrison | Discovered new exit (range 33) 11187 | -5/Garrison | Discovered new exit (range 46) 11187 | -5/Garrison | Discovered new exit (range 50) 11234 | -5/Garrison | Triggered checkpoint 11236 | -5/Garrison | Local machine network offline 11236 | -5/Garrison | Triggered checkpoint 11246 | -5/Garrison | Expanded RIF knowledge: Code Merge 11250 | -5/Garrison | Triggered checkpoint 11267 | -5/Garrison | Expanded RIF knowledge: Program Shield 11274 | -5/Garrison | Entered Factory 11275 | -5/Factory | Loaded intel: 264 machine locations 11350 | -5/Factory | Repaired Prc. Grenade Launcher? 11404 | -5/Factory | Discovered exit to Upper Caves (range 7) 11479 | -5/Factory | Identified exit to Garrison 11483 | -5/Factory | Spotted B-75 Beast 11530 | -5/Factory | Local machine network offline 11604 | -5/Factory | Lost 4 parts (2p2n) 11611 | -5/Factory | Discovered exit to Factory (range 14) 11616 | -5/Factory | Assembled infested ambush trap array 11641 | -5/Factory | Identified exit to Garrison 11641 | -5/Factory | Entered Garrison 11642 | -5/Garrison | Loaded intel: 31 machine locations 11647 | -5/Garrison | Discovered exit to Factory (range 32) 11647 | -5/Garrison | Discovered exit to Factory (range 44) 11647 | -5/Garrison | Discovered exit to Factory (range 55) 11655 | -5/Garrison | H-XX Assembler disabled 11667 | -5/Garrison | Expanded RIF knowledge: Alert ID Control 11677 | -5/Garrison | Found embedded Infiltrators 11691 | -5/Garrison | Entered Factory 11691 | -4/Factory | Accompanied by 2 allies 11691 | -4/Factory | Evolved 2 slots: Propulsion x1, Utility x1 11692 | -4/Factory | Loaded intel: 285 machine locations 11766 | -4/Factory | Discovered new exit (range 12) 11810 | -4/Factory | Lost 3 allies 11817 | -4/Factory | Lost 4 parts (1p3n) 11840 | -4/Factory | Discovered new exit (range 16) 11921 | -4/Factory | Manually triggered Chute Trap 11921 | -4/Factory | Sucked down chute 11921 | -4/Factory | Entered Waste 11922 | -4/Waste | Joined by Warlord forces that had cleared the area 11951 | -4/Waste | 1 allies followed down the chute 12029 | -4/Waste | Discovered new exit (range 16) 12081 | -4/Waste | A Compactor rumbled back to life 12086 | -4/Waste | Allies destroyed C-40 Crusher 12106 | -4/Waste | Entered Factory 12106 | -4/Factory | Accompanied by 21 allies 12107 | -4/Factory | Loaded intel: 281 machine locations 12139 | -4/Factory | Identified exit to Upper Caves 12139 | -4/Factory | Identified exit to Armory 12197 | -4/Factory | Fabricated Hyp. Gauss Cannon (x2) 12200 | -4/Factory | Fabricated Adv. Surge Thruster (x2) 12212 | -4/Factory | Central database locked down 12233 | -4/Factory | Local machine network offline 12235 | -4/Factory | Fabricated Adv. Cryofiber Web (x2) 12316 | -4/Factory | Entered Armory 12317 | -4/Armory | Met VL-GR5, who suggested a friendly competition 12317 | -4/Armory | Loaded intel: 81 machine locations 12339 | -4/Armory | Lost 14 allies 12462 | -4/Armory | Spotted B-86 Titan 12486 | -4/Armory | Local machine network offline 12489 | -4/Armory | Fabricated Adv. Datajack (x2) 12499 | -4/Armory | Fabricated L-61 Swordsman (x3) 12538 | -4/Armory | Destroyed 7 combat bots 12575 | -4/Armory | Lost the competition with VL-GR5 12636 | -4/Armory | Discovered new exit (range 5) 12731 | -4/Armory | VL-GR5 left a parting gift on exiting Armory 12751 | -4/Armory | Discovered new exit (range 3) 12757 | -4/Armory | Intercept squad dispatched 12760 | -4/Armory | Spotted Tracker 12761 | -4/Armory | Assimilated Tracker with formatsys_high 12800 | -4/Armory | Discovered new exit (range 3) 12805 | -4/Armory | Found Exp. Phase Shifter 13006 | -4/Armory | Intercept squad dispatched 13022 | -4/Armory | Spotted Tracker 13022 | -4/Armory | Spotted Tracker 13022 | -4/Armory | Spotted Tracker 13022 | -4/Armory | Assimilated Tracker with formatsys_high 13026 | -4/Armory | Assimilated Tracker with formatsys_high 13027 | -4/Armory | Assimilated Tracker with formatsys_high 13033 | -4/Armory | Spotted Combat Programmer 13035 | -4/Armory | Allies destroyed Combat Programmer 13053 | -4/Armory | Spotted Combat Programmer 13053 | -4/Armory | Spotted Combat Programmer 13064 | -4/Armory | Allies destroyed Combat Programmer 13065 | -4/Armory | Allies destroyed Combat Programmer 13066 | -4/Armory | First assault squad dispatched 13090 | -4/Armory | Entered Lab 13090 | -4/Lab | Accompanied by 4 allies 13090 | -4/Lab | Discovered new exit (range 9) 13092 | -4/Lab | Hidden lab's door opened automatically 13092 | -4/Lab | Sensor layout match revealed 13093 | -4/Lab | Gained access to the hidden lab's interior 13093 | -4/Lab | Detected by scanners 13108 | -4/Lab | Confronted by A5 13141 | -4/Lab | Allies destroyed A5 13145 | -4/Lab | Found Exp. System Shield 13149 | -4/Lab | Found Prototype Protection 13149 | -4/Lab | Identified Med. Regenerative Plating 13155 | -4/Lab | Decrypted terminal 13162 | -4/Lab | Found Alien Artifact 13162 | -4/Lab | Identified Integrated Dissipator 13162 | -4/Lab | Installed Integrated Dissipator, increased core heat dissipation (+20) 13167 | -4/Lab | Found Alien Artifact 13173 | -4/Lab | Found Alien Artifact 13181 | -4/Lab | Found Prototype Energy Gun 13181 | -4/Lab | Identified Tachyon Dispersion Ray 13184 | -4/Lab | Found Prototype Energy Gun 13184 | -4/Lab | Identified Hyp. EM Gauss Rifle 13194 | -4/Lab | Decrypted terminal 13194 | -4/Lab | Acquired modification code for an L2 power cell 13197 | -4/Lab | Found Prototype Special Weapon 13197 | -4/Lab | Identified Gui. Remote Datajack 13233 | -4/Lab | Decrypted terminal 13234 | -4/Lab | Decrypted terminal 13234 | -4/Lab | Found Alien Artifact 13234 | -4/Lab | Identified LC Capacitor 13247 | -4/Lab | Found Deep Network Scanner 13286 | -4/Lab | Found Alien Artifact 13304 | -4/Lab | Entered Research 13304 | -3/Research | Accompanied by 2 allies 13304 | -3/Research | Evolved 2 slots: Propulsion x2 13305 | -3/Research | Loaded intel: 124 machine locations 13313 | -3/Research | Identified exit to Testing 13349 | -3/Research | Identified Core Reset Matrix 13349 | -3/Research | Identified Core Regenerator 13349 | -3/Research | Identified Transdimensional Reconstructor 13421 | -3/Research | Fabricated Imp. Q-thruster (x1) 13461 | -3/Research | Identified exit to Garrison 13464 | -3/Research | Local machine network offline 13466 | -3/Research | Entered Garrison 13467 | -3/Garrison | Loaded intel: 34 machine locations 13476 | -3/Garrison | Discovered new exit (range 63) 13476 | -3/Garrison | Discovered new exit (range 45) 13476 | -3/Garrison | Discovered new exit (range 88) 13476 | -3/Garrison | Discovered new exit (range 84) 13486 | -3/Garrison | Spotted B-86 Titan 13487 | -3/Garrison | Triggered checkpoint 13497 | -3/Garrison | Found embedded Infiltrators 13526 | -3/Garrison | Expanded RIF knowledge: Zone Cloak 13527 | -3/Garrison | Entered Research 13528 | -3/Research | Loaded intel: 115 machine locations 13575 | -3/Research | Entered Testing 13575 | -3/Testing | Accompanied by 1 ally 13576 | -3/Testing | Loaded intel: 58 machine locations 13578 | -3/Testing | Identified exit to Garrison 13663 | -3/Testing | Discovered new exit (range 14) 13665 | -3/Testing | Unchained authorized (CL-0N3) 13707 | -3/Testing | Fabricated Imp. Cloaking Device (x2) 13723 | -3/Testing | Entered Garrison 13724 | -3/Garrison | Loaded intel: 42 machine locations 13727 | -3/Garrison | Expanded RIF knowledge: Signal Jamming 13739 | -3/Garrison | Build established: Scientist-Sprinter 13752 | -3/Garrison | Discovered new exit (range 35) 13752 | -3/Garrison | Discovered new exit (range 61) 13752 | -3/Garrison | Discovered new exit (range 41) 13752 | -3/Garrison | Learned Research security intel 13755 | -3/Garrison | Triggered checkpoint 13761 | -3/Garrison | Entered Research 13761 | -2/Research | Evolved 2 slots: Utility x2 13763 | -2/Research | Loaded intel: 133 machine locations 13792 | -2/Research | Spotted B-90 Cyclops 13810 | -2/Research | Identified exit to Quarantine 13850 | -2/Research | Spotted B-90 Cyclops 13851 | -2/Research | Entered Quarantine 13852 | -2/Quarantine | Loaded intel: 64 machine locations 13883 | -2/Quarantine | Met incapacitated Sigix Warrior 13883 | -2/Quarantine | Lockdown squad dispatched 13884 | -2/Quarantine | Acquired the access code to the Sigix quarantine chamber 13885 | -2/Quarantine | Unlocked Sigix quarantine chamber 13886 | -2/Quarantine | Found Sigix Containment Pod 13894 | -2/Quarantine | Found Exp. Sensor Array 13902 | -2/Quarantine | Cryocooling Duct disabled 13917 | -2/Quarantine | Ambient heat levels rising (+20) 13917 | -2/Quarantine | Non-combat units ordered to evacuate 13970 | -2/Quarantine | Repaired Mic. Antimatter Reactor+ 13980 | -2/Quarantine | Learned Section 7 emergency access door positions 14008 | -2/Quarantine | Discovered new exit (range 12) 14047 | -2/Quarantine | Found Alien Artifact 14061 | -2/Quarantine | Spotted Fortress 14061 | -2/Quarantine | Assimilated Fortress with formatsys_high 14066 | -2/Quarantine | Unchained authorized (CL-0N3) 14113 | -2/Quarantine | Learned 8 Research zone layouts 14120 | -2/Quarantine | Spotted Combat Programmer 14163 | -2/Quarantine | Learned Research trap positions 14184 | -2/Quarantine | Intercept squad dispatched 14205 | -2/Quarantine | Learned Section 7 emergency access door positions 14209 | -2/Quarantine | Spotted Tracker 14209 | -2/Quarantine | Spotted Tracker 14229 | -2/Quarantine | Allies destroyed Tracker 14235 | -2/Quarantine | Allies destroyed Tracker 14236 | -2/Quarantine | Identified exit to Section 7 14284 | -2/Quarantine | Spotted Combat Programmer 14354 | -2/Quarantine | Spotted Combat Programmer 14376 | -2/Quarantine | Discovered new exit (range 6) 14657 | -2/Quarantine | Entered Section 7 14657 | -2/Section 7 | Accompanied by 1 ally 14658 | -2/Section 7 | Identified exit to Access 14660 | -2/Section 7 | Loaded intel: 123 machine locations 14686 | -2/Section 7 | Identified exit to Garrison 14708 | -2/Section 7 | Spotted S7 Guard 14733 | -2/Section 7 | Found Spectral Analyzer 14734 | -2/Section 7 | Garrison activated, responded to threat 14743 | -2/Section 7 | Found Alien Artifact 14743 | -2/Section 7 | Identified Core Physics Calibrator 14765 | -2/Section 7 | Spotted B-90 Cyclops 14790 | -2/Section 7 | Warped through subspace 14791 | -2/Section 7 | Used Core Regenerator, restored core integrity (+362) 14809 | -2/Section 7 | Found Alien Artifact 14809 | -2/Section 7 | Identified Integrity Redistributor 14809 | -2/Section 7 | Used Integrity Redistributor, redistributed integrity from core (-122) 14810 | -2/Section 7 | Lost 14 parts (3p7n3u1w) 14826 | -2/Section 7 | Intercept squad dispatched 14834 | -2/Section 7 | Spotted Tracker 14834 | -2/Section 7 | Spotted Tracker 14836 | -2/Section 7 | Scanned by Researcher 14847 | -2/Section 7 | Spotted Combat Programmer 14848 | -2/Section 7 | Spotted Alpha 7 14849 | -2/Section 7 | Spotted Alpha 7 14851 | -2/Section 7 | Combat Programmer assimilated allied G-73 Enforcer 14861 | -2/Section 7 | Destroyed Tracker 14864 | -2/Section 7 | Destroyed Tracker 14866 | -2/Section 7 | Core integrity fell below 50% 14877 | -2/Section 7 | Spotted Combat Programmer 14882 | -2/Section 7 | System corruption reached 10% 14885 | -2/Section 7 | Core integrity fell below 20% 14890 | -2/Section 7 | Destroyed by Combat Programmer with EMDS Last Messages --------------- 14872_ Penetrated by EMDS Slug. 14872_ Nanosword destroyed. 14874_ Penetrated by EMDS Slug. 14876_ System corrupted: Exp. Coolant Injector rejected. 14876_ Connecting with Terminal... 14876_ ALERT: Suspicious activity at Terminal 7010. Dispatching Investigation squad. 14881_ Penetrated by EMDS Slug. 14881_ Held in stasis. 14881_ C-65 Expert is analyzing... 14882_ Penetrated by EMDS Slug. 14883_ Slug penetrates Terminal. 14884_ Penetrated by EMDS Slug. 14885_ Held in stasis. 14885_ C-65 Expert is analyzing... 14886_ Penetrated by EMDS Slug. 14889_ Held in stasis. 14889_ C-65 Expert is analyzing... 14889_ Penetrated by EMDS Slug. Map ----- +----------------------------------------------------+ | ?????????????????????????"""""""??????""""""""""?? | | ?????????????????????????"""""""??????"??????????? | | ?????????????##??????????"""""""??????"??????????? | | ????#########"#??##???????????????????"??????????? | | ###?# !! #??? ?????????????????T????????????? | | ?#* "" #??? ??????????????????"???????????? | | #= "" ! #??? ??????????????????"???????????? | | # " ""! #??? ??????????????????????????????? | | + " "" #??# ???????????????????"??????????? | | # """" #??# ???????????????????"??????????? | | # #??# ???????????????????"????????"?? | | # #??# ???????????????????"????????""" | | ##### #??# ???????????????????"??????????" | | #########""###??# ???????????????????"??????????" | | ###????# #??????????????????"??????????? | | #??????# #??????????????????"???????"""" | | ! #??????# #??????????????????"???????"""" | | ! #??????# ###########????????"???????"""" | | #??????# # #????????"??????????? | | #??????# # #????????"??????????? | | #??????# #"" !! #????????"???????"""" | | # #####+##??????# #"" != #????????"???????"""" | | ####??# #???????# #"T s #????????"???????"""" | | ?# #???????# #""p #????????"??????????? | | ?# #???????# #""c !##???????"??????????? | | #??# #???????# =/77p !@ =%*#???????"??????????? | | " ####+######??#A ############???????"??????????? | | " ## #??# #??????????????????"??????????? | | ## ! #??# #?????"""??????????"??????????? | | " #??# #?????"""??????????"???????"""" | | " #??# !#?????"""??????????????????"""" | | " #??# #?????"""??????????"???????"""" | | #??# #?????"""??????????""?????????? | | #### #?????"""??????????"""????????? | | ?# #?????"""??????????"""?????"""" | | #??# #??????????????????"""?????"""? | | #### ##########?????????????????"""" | | / ?????????? | | & / ?????????? | | / ??????????? | | / ??????????? | | ##+######+########################## #???????????? | | ??????????????????????????????????????"""????????? | | ??"""?????????????????????????????????"""????????? | | ??"""???????"""???????????????????????"""????????? | | ??"""??????""?""??????????????????????""?????????? | | ??"""?????""""""??????????????????????"??????????? | | ??"""????"""""""????????????????????????????"""""" | | ??"""???????????????????????????????????????"""""" | | ??"""????????????????????????????????????????????? | +----------------------------------------------------+ Best States ------------- Heat Dissipation 95 Coolant Potential 120 Energy Generation 44 Energy Capacity 390 Matter Stores 300 Matter Capacity 300 Sight Range 24 Robot Scan Range 20 Terrain Scan Range 16 Terrain Scan Density 10 ECM Strength 1 Cloak Strength 3 Base Temperature (-) 200 Corruption Block 8 Armor Coverage 550 Propulsion Shielding 66 Phase Shifting 20 Evasion (%) 86 Melee Accuracy 18 Recoil Reduction 4 Offensive Hacking 39 Defensive Hacking 20 Relay Coupler Types 2 Relay Coupler Value 52 Authchip Count 3 Trap Extractor Capacity 6 Item Schematics ----------------- ECM Suite | -9/Materials | Hacked Imp. Melee Analysis Suite | -8/Materials | Scanalyzed Plasma Cutter | -8/Materials | Scanalyzed Lrn. Missile Launcher | -7/Factory | Downloaded Surge Thruster | -7/Factory | Hacked Shield Leg | -7/Factory | Downloaded Imp. Trap Extractor | -7/Factory | Hacked Imp. Cesium-ion Thruster | -7/Factory | Scanalyzed Imp. Propulsion Shielding | -7/Factory | Scanalyzed Imp. Surge Thruster | -7/Factory | Hacked Stasis Canceller | -7/Factory | Hacked Fusion Compressor | -7/Factory | Hacked Combat Drone Bay | -7/Data Miner | Free Lgt. Regenerative Plating | -7/Data Miner | Free Biomechanical Wings | -7/Data Miner | Free Gravity Neutralizer | -7/Data Miner | Free Antimatter Cannon | -7/Data Miner | Free Linear Gravjet | -7/Data Miner | Free Adv. Trap Extractor | -7/Data Miner | Free Enh. Gauss Cannon | -7/Data Miner | Free Hvy. Machine Gun | -7/Data Miner | Free Imp. Remote Datajack | -7/Data Miner | Free Adv. Recoil Stabilizer | -7/Data Miner | Free Adv. Reaction Control System | -7/Data Miner | Free Hvy. Gauss Cannon | -7/Data Miner | Free Powered Armor | -6/Factory | Scanalyzed Mak. Hacking Suite | -6/Factory | Scanalyzed Energy Well | -6/Factory | Extracted Imp. Transmission Jammer | -6/Extension | Hacked Exp. Propulsion Shielding | -5/Factory | Hacked Cld. Cesium-ion Thruster | -5/Factory | Scanalyzed Adv. Datajack | -5/Factory | Scanalyzed Adv. Cryofiber Web | -5/Factory | Scanalyzed Imp. Titanium Leg | -5/Factory | Extracted Hyp. Gauss Cannon | -5/Factory | Extracted Arm. Medium Treads | -5/Factory | Extracted VTOL Module | -5/Factory | Scanalyzed Imp. Point Defense System | -5/Factory | Hacked Adv. Surge Thruster | -5/Factory | Hacked Tesla Rifle | -4/Factory | Extracted Imp. Targeting Computer | -4/Factory | Extracted Adv. Shield Generator | -4/Factory | Extracted Imp. Medium Armor Plating | -4/Factory | Extracted Imp. Weapon Cycler | -4/Factory | Extracted Imp. Datajack | -4/Factory | Extracted Com. Battery | -4/Factory | Extracted Adv. Medium Treads | -4/Factory | Extracted Adv. ECM Suite | -4/Factory | Extracted Com. Matter Pod | -4/Factory | Extracted Reaction Control System | -4/Factory | Extracted Hpw. Tractor Beam | -4/Factory | Extracted Dispersion Rifle | -4/Factory | Extracted Adv. Force Field | -4/Factory | Hacked Enh. Hardcell Cannon | -4/Factory | Hacked Hvy. Disruptor Cannon | -4/Factory | Hacked Plasma Sword | -4/Factory | Extracted Adv. Heavy Siege Treads | -4/Factory | Hacked Enh. Nova Cannon | -4/Factory | Hacked Q-thruster | -4/Armory | Hacked Graphene Brace | -3/Research | Scanalyzed Imp. Q-thruster | -3/Testing | Hacked Imp. Cloaking Device | -3/Testing | Hacked Exp. Q-thruster | -2/Research | Hacked Cmb. Linear Gravjet | -2/Research | Hacked Adv. Cloaking Device | -2/Research | Hacked Enh. Multireflex Exoskeleton | -2/Section 7 | Archive Prc. Energy Filter | -2/Section 7 | Archive Robot Schematics ------------------ E-15 Imp | -7/Data Miner | Free W-25 Informer | -7/Data Miner | Free R-10 Processor | -7/Data Miner | Free O-24 Administrator | -7/Data Miner | Free Y-64 Sentinel | -5/Factory | Hacked B-74 Champion | -2/Section 7 | Archive Fabricated ------------ Imp. Trap Extractor | x2 | -7/Factory | Authchip Cld. Cesium-ion Thruster | x1 | -5/Factory | Authchip Hyp. Gauss Cannon | x2 | -4/Factory | Authchip Adv. Surge Thruster | x2 | -4/Factory | Authchip Adv. Cryofiber Web | x2 | -4/Factory | Authchip Adv. Datajack | x2 | -4/Armory | Preloaded L-61 Swordsman | x3 | -4/Armory | Preloaded Imp. Q-thruster | x1 | -3/Research | Preloaded Imp. Cloaking Device | x2 | -3/Testing | Authchip Repaired ---------- Hvy. EM Pulse Gun | 24% | -10/Materials Hvy. EM Pulse Gun | 68% | -10/Materials Powered Armor | 58% | -6/Factory | Broken Prc. Grenade Launcher | 15% | -5/Factory Mic. Antimatter Reactor | 27% | -2/Quarantine Studied --------- VTOL Module | -8/Materials | Hacked Cesium-ion Thruster | -8/Materials | Hacked Lgt. Nuclear Core | -8/Materials | Hacked Mni. Grenade Launcher | -8/Materials | Hacked Flight Unit | -7/Factory | Hacked Nuclear Pulse Thruster | -7/Factory | Hacked Xenon Bombardment Thruster | -7/Factory | Hacked Hyp. Gauss Rifle | -7/Factory | Hacked Mic. Nuclear Core | -7/Factory | Hacked Chainsword | -7/Factory | Hacked Imp. Datajack | -6/Factory | Hacked Remote Datajack | -6/Factory | Hacked Lgt. Angular Momentum Engine | -5/Factory | Hacked Field Propulsion Drive | -5/Factory | Hacked Adv. Datajack | -4/Factory | Hacked Adv. Surge Thruster | -4/Factory | Hacked Hyp. Gauss Cannon | -4/Factory | Hacked Q-thruster | -3/Research | Hacked Field Propulsion Array | -3/Research | Hacked Mic. Antimatter Reactor | -3/Research | Hacked Lgt. Particle Reactor | -3/Research | Hacked Impulse Thruster Array | -3/Research | Hacked Impulse Thruster | -3/Research | Hacked Alien Tech Used ----------------- Integrated Dissipator LC Capacitor Core Physics Calibrator Transdimensional Reconstructor Core Regenerator Integrity Redistributor Achievements -------------- Be The Sidekick Challenges ------------ None Game ------ Seed CannonFrostMapper Manual? 0 Play Time 05:54:44 Cumulative 824.9 hours Start 2025.12.23 @ 11:34:52 End 2025.12.23 @ 19:10:18 Sessions 3 Manual Loads 0 Difficulty Rogue Special Mode None Game No. 333 Rogue 333 Adventurer 0 Explorer 0 Win Type - Total 85 Types 43/6/15/6/6/1/1/3/0/4 Lore% 97 Gallery% 91 Achievement% 85 Wizard Run 0 Options --------- Layout 1 ASCII 0 Keyboard 0 Movement Numpad Keybinds 0 Fullscreen 1 Font 24/Smallcaps Map View 50x35 Zoom Use 0% Tactical HUD 1 Map Filters NONE Filters NONE Steam 1 RUN: 3cd6a392-9223-478e-951a-44aa8d64a901